Cogmind - Beta 11.1 @@@ ROGUE MODE // 2022.08.06 @ 08:57:05 Player: Benkyo Result: Establishing Free Derelict Territories! Performance ------------- Evolutions (9) 4500 Regions Visited (35) 7000 Robots Destroyed (274) 1370 Value Destroyed (13169) 13169 Prototype IDs (103) 2060 Alien Tech Used (12) 2400 Bonus (42860) 42860 TOTAL SCORE: 73359 Bonus ------- High Alert Combat Kills 999 Follower Combat Kills 10153 Network Hubs Disabled 400 Met Data Miner 300 Destroyed Z-Imprinter 1000 Triggered Deep Caves Wall 500 Exposed GOLEM Chamber 500 Met Zhirov 300 Met Warlord at Base 500 MAIN.C Attacked Warlord 500 Warlord Defense Kills 1710 Built Enhanced Grunts 300 A7 Reached Mainframe 300 Met R17 at Cetus 500 Met Warlord at Research 2000 Destroyed MAIN.C Guards 500 Met MAIN.C 5000 Hacked MAIN.C 300 Destroyed MAIN.C Shell 5000 Destroyed MAIN.C 10000 Met Warlord at Command 2000 Win 3000 Friendly Fire -2902 Cogmind --------- Core Integrity 1600/1600 Matter 69/300 Energy 950/950 System Corruption 0% Temperature Cool (0) Movement Immobile (Siege) Location Free Derelict Territories Parts ------- > --- POWER (3) -------- Improved Quantum Reactor Vortex Chain Reactor > --- PROPULSION (6) --- Centrium Heavy Treads Biometal Heavy Treads High-density Centrium Heavy Treads > --- UTILITY (15) ----- Experimental Cooling System Advanced Coolant Injector Huge Storage Unit Assembled Combat Suite AEGIS Remote Shield Wardrone Bay (0/1) > --- WEAPON (2) ------- Multirail Multirail > --- INVENTORY (25) --- Armored Heavy Treads Experimental Energy Well (600) Zionite Biocell (600) Advanced Sensor Array Surveybot 24 Scanner Quantum Capacitor Advanced Transmission Jammer SHELL Armor Improved Energy Mantle Antimissile System Transdimensional Reconstructor Proton Burst Cannon Null Cannon Improved Potential Cannon Multirail Graviton Cannon Micro-nuke Launcher Hellfire Missile Launcher Advanced Remote Datajack Deploy-a-Sentry Peak State ------------ > --- POWER ------------ Improved Quantum Reactor Vortex Chain Reactor > --- PROPULSION ------- Centrium Heavy Treads Biometal Heavy Treads High-density Centrium Heavy Treads > --- UTILITY ---------- Huge Storage Unit Advanced Signal Interpreter Assembled Combat Suite Advanced Transmission Jammer Improved Energy Mantle Experimental System Shield Ghost Barrier Wardrone Bay > --- WEAPON ----------- Null Cannon Graviton Cannon > --- INVENTORY -------- Armored Heavy Treads Experimental Cooling System Advanced Coolant Injector Experimental Energy Well Zionite Biocell Advanced Sensor Array Surveybot 24 Scanner Quantum Capacitor SHELL Armor Antimissile System Transdimensional Reconstructor Proton Burst Cannon Improved Potential Cannon Multirail Multirail Multirail Micro-nuke Launcher Advanced Remote Datajack Deploy-a-Sentry [Rating: 283] Favorites ----------- Power Assembled Flux Generator Engine Light Angular Momentum Engine Power Core Neutrino Core Reactor Assembled Flux Generator Propulsion Assembled Alloy Leg Treads Centrium Heavy Treads Leg Assembled Alloy Leg Wheel Armored Wheel Hover Unit Zionite Glidesys I Utility Assembled Biocell Array Device GOLEM Unit Storage Assembled Biocell Array Processor Advanced Signal Interpreter Hackware Improved Hacking Suite Protection Assembled Alloy Armor Artifact Core Physics Calibrator Weapon Assembled Focal Cannon Energy Gun EM Shotgun Energy Cannon Assembled Focal Cannon Ballistic Gun Gauss Rifle Ballistic Cannon Graviton Cannon Launcher Heavy Missile Launcher Special Weapon Advanced Remote Datajack Impact Weapon Core Stripper Slashing Weapon Ripper Piercing Weapon CR-A16's Pointy Stick Build | -11 -10 -10 -10 -9 -8 -7 -7 -7 -7 -7 -6 -6 -6 -6 -6 -5 -5 -5 -5 -5 -5 -4 -4 -4 -4 -4 -4 -3 -3 -3 -2 -2 -2 -1 -1 ------- Run | Scr Mat Min Exi Min Mat Fac Low Low Zio Dee Pro Fac Low Low Dat Pro Fac Ext Cet Arc Hub Fac Was Fac Upp Upp War Pro Res Tes Res Qua Sec Acc Com Slots Evolved 18 | . . . . . 4 2 . . . . . 2 . . . . 2 . . . . 2 . . . . . . 2 . 2 . . 2 . Power 2 | . . . . . . 1 . . . . . . . . . . . . . . . . . . . . . . . . . . . 1 . Propulsion 4 | . . . . . . . . . . . . . . . . . . . . . . 2 . . . . . . 2 . . . . . . Utility 12 | . . . . . 4 1 . . . . . 2 . . . . 2 . . . . . . . . . . . . . 2 . . 1 . Weapon . | . . . . . . . . . . . . . . . . . . . . . . . . . . . . . . . . . . . . Parts Attached 428 | 7 11 2 2 4 56 25 16 7 7 56 6 12 3 8 1 3 4 7 4 . 3 11 4 23 10 15 12 4 1 22 4 28 28 8 14 Power 17 | 1 1 . . 1 4 2 1 1 . 4 . . . . . . . . . . . . . . . . 1 . . . . . . 1 . Engine 9 | 1 1 . . 1 3 1 1 . . 1 . . . . . . . . . . . . . . . . . . . . . . . . . Core 3 | . . . . . 1 1 . 1 . . . . . . . . . . . . . . . . . . . . . . . . . . . Reactor 5 | . . . . . . . . . . 3 . . . . . . . . . . . . . . . . 1 . . . . . . 1 . Propulsion 37 | 2 2 2 . 1 8 4 2 . . 5 . . . . . . . . . . . 1 2 . . . . 1 1 4 1 1 . . . Treads 25 | 2 2 . . 1 5 1 2 . . 1 . . . . . . . . . . . 1 2 . . . . 1 1 4 1 1 . . . Leg 1 | . . . . . . . . . . 1 . . . . . . . . . . . . . . . . . . . . . . . . . Wheel 10 | . . 2 . . 3 3 . . . 2 . . . . . . . . . . . . . . . . . . . . . . . . . Hover 1 | . . . . . . . . . . 1 . . . . . . . . . . . . . . . . . . . . . . . . . Flight . | . . . . . . . . . . . . . . . . . . . . . . . . . . . . . . . . . . . . Utility 309 | 2 3 . . . 35 18 8 5 2 30 5 12 3 8 1 3 4 7 3 . 3 10 2 22 10 15 10 3 . 18 3 21 26 7 10 Device 181 | 1 . . . . 19 12 3 1 1 9 4 6 1 4 . 2 1 2 . . 2 5 . 14 4 7 7 3 . 14 3 18 24 6 8 Storage 12 | 1 2 . . . . . . . . 2 1 1 . . . . 1 . . . . . . . . . 1 . . 3 . . . . . Processor 16 | . . . . . 4 . 1 . . 1 . 2 1 . . . . 1 . . . . 1 . . 1 . . . 1 . 1 1 1 . Hackware 6 | . . . . . . 2 . . . . . . . . . . . . . . . 1 . . . . . . . . . 1 . . 2 Protection 93 | . 1 . . . 12 4 4 4 1 18 . 3 1 4 1 1 2 4 3 . 1 4 1 8 6 7 2 . . . . 1 . . . Artifact 1 | . . . . . . . . . . . . . . . . . . . . . . . . . . . . . . . . . 1 . . Weapon 65 | 2 5 . 2 2 9 1 5 1 5 17 1 . . . . . . . 1 . . . . 1 . . 1 . . . . 6 2 . 4 Energy Gun 17 | 1 4 . 1 . 3 . . . 1 7 . . . . . . . . . . . . . . . . . . . . . . . . . Energy Cannon 14 | . . . . . 1 1 1 1 2 6 . . . . . . . . . . . . . . . . . . . . . 2 . . . Ballistic Gun 16 | 1 1 . 1 1 5 . 1 . 1 1 . . . . . . . . 1 . . . . . . . . . . . . . 1 . 2 Ballistic Cannon 5 | . . . . . . . 2 . . . . . . . . . . . . . . . . . . . . . . . . 1 1 . 1 Launcher 5 | . . . . 1 . . 1 . . 3 . . . . . . . . . . . . . . . . . . . . . . . . . Special Weapon 3 | . . . . . . . . . . . . . . . . . . . . . . . . . . . 1 . . . . 1 . . 1 Impact Weapon 2 | . . . . . . . . . . . . . . . . . . . . . . . . . . . . . . . . 2 . . . Slashing Weapon 2 | . . . . . . . . . 1 . . . . . . . . . . . . . . 1 . . . . . . . . . . . Piercing Weapon 1 | . . . . . . . . . . . 1 . . . . . . . . . . . . . . . . . . . . . . . . Special Melee Weapon . | . . . . . . . . . . . . . . . . . . . . . . . . . . . . . . . . . . . . Unidentified Prototypes 47 | . . . . . . . . . . 10 . . . . . . . . 2 . . 1 2 . . . 6 . . 3 . 8 13 . 2 Parts Lost 33 | . 3 1 . . 2 1 4 1 . 19 1 1 . . . . . . . . . . . . . . . . . . . . . . . Power 6 | . . . . . . . 1 1 . 4 . . . . . . . . . . . . . . . . . . . . . . . . . Propulsion 5 | . . 1 . . . . 1 . . 3 . . . . . . . . . . . . . . . . . . . . . . . . . Utility 16 | . . . . . 1 1 2 . . 10 1 1 . . . . . . . . . . . . . . . . . . . . . . . Weapon 6 | . 3 . . . 1 . . . . 2 . . . . . . . . . . . . . . . . . . . . . . . . . Highest Loss Streak 12 | . 2 1 . . 1 1 3 1 . 12 1 1 . . . . . . . . . . . . . . . . . . . . . . . To Critical Strikes . | . . . . . . . . . . . . . . . . . . . . . . . . . . . . . . . . . . . . Average Slot Usage (%) 81 | . 98 100 71 100 99 99 97 95 99 91 83 85 86 86 74 86 87 87 88 88 88 84 83 84 78 78 61 54 47 46 50 51 51 57 55 Engine 2 | . 14 14 14 14 8 3 9 9 7 . . . . . . . . . . . . . . . . . . . . . . . . . . Reactor 3 | . . . . . . . . . . 9 6 6 6 6 6 6 5 5 5 5 5 5 5 5 5 5 5 5 4 4 4 4 4 7 7 Treads 7 | . 28 16 14 14 8 . 7 15 15 3 . . . . . . . . . . . 5 5 5 5 5 5 5 14 13 13 13 12 11 11 Leg 6 | . . . . . . . . . . 5 14 13 13 13 9 13 11 11 11 11 11 10 9 10 10 10 10 9 . . . . . . . Wheel 1 | . . 11 14 14 8 14 7 . . 5 . . . . . . . . . . . . . . . . . . . . . . . . . Device 14 | . . . . . 15 19 19 14 15 19 14 23 19 19 20 19 25 21 11 11 16 14 12 14 14 14 8 7 4 8 15 16 15 19 18 Storage 9 | . 14 14 14 14 9 7 7 7 7 9 20 13 13 13 13 13 11 11 11 11 11 10 10 10 10 10 10 10 9 4 4 4 4 3 3 Processor 9 | . . . . . 17 11 14 15 13 7 7 5 13 13 13 13 7 5 11 11 11 10 12 15 10 9 6 5 4 4 4 4 4 7 2 Protection 8 | . 13 14 14 14 11 6 9 15 16 12 1 8 6 6 6 6 12 17 23 23 17 14 9 5 10 10 4 . . . . . . . . Energy Gun 1 | . 12 14 . 14 5 . . . . 5 . . . . . . . . . . . . . . . . . . . . . . . . . Energy Cannon 8 | . . . . . 1 7 7 7 11 7 14 13 13 13 4 13 11 11 11 11 11 10 9 9 10 10 10 10 9 9 8 6 4 3 2 Ballistic Gun 2 | . 13 14 . 13 11 7 3 7 2 1 . . . . . . . . . . . . . . . . . . . . . . . . . Naked Turns . | . . . . . . . . . . . . . . . . . . . . . . . . . . . . . . . . . . . . Heaviest Build 234 | 15 50 50 50 50 76 81 91 91 102 122 118 123 126 126 126 126 171 180 180 180 180 174 167 166 175 175 201 196 196 200 216 216 214 227 234 Greatest Support 255 | 40 40 40 12 12 20 24 40 40 40 60 60 80 60 60 60 60 80 80 60 60 60 60 60 80 60 80 80 160 230 230 235 245 255 255 255 Greatest Overweight (x) 23 | 1 1 4 4 4 18 3 6 2 2 23 3 2 2 2 2 2 2 2 2 2 2 2 2 2 2 2 3 3 . 1 . . . . . Average Overweight (x) 1 | . . 3 3 4 5 2 3 1 2 3 1 1 1 1 1 1 1 2 2 2 2 2 2 1 2 2 2 2 . . . . . . . Largest Inventory Capacity 25 | 8 20 20 20 20 20 20 20 20 20 20 20 20 20 20 20 20 25 25 25 25 25 25 25 25 25 25 25 25 25 25 25 25 25 25 25 Average Capacity 22 | 7 14 20 20 20 20 20 20 20 20 19 20 19 20 20 20 20 23 25 25 25 25 25 25 25 25 25 25 25 25 25 25 25 25 25 25 Most Carried 25 | 6 18 19 20 20 20 20 20 20 20 20 20 20 20 20 20 20 22 25 25 25 25 25 25 25 25 25 25 25 25 25 25 25 25 25 25 Average Carried 21 | 4 13 18 19 19 19 19 19 19 19 17 19 18 19 19 20 20 19 21 24 25 24 24 25 24 24 24 24 24 24 24 24 24 24 23 23 Final Capacity 25 | 8 20 20 20 20 20 20 20 20 20 20 20 20 20 20 20 20 25 25 25 25 25 25 25 25 25 25 25 25 25 25 25 25 25 25 25 Final Carried 25 | 6 18 19 18 20 20 20 20 20 20 20 20 20 20 20 20 20 19 23 25 25 25 25 25 25 25 25 25 25 25 25 25 25 25 25 25 Class Distribution -------------------- 37% | Golem 35% | Mutant 10% | Skirmisher 7% | Scavenger-Mutant Dominant Class ---------------- Mutant | -10/Materials Mutant | -10/Mines Mutant | -10/Exiles Mutant | -9/Mines Skirmisher | -8/Materials Mutant | -7/Factory Skirmisher | -7/Lower Caves Mutant | -7/Lower Caves Scavenger-Mutant | -7/Zion Mutant | -7/Deep Caves Golem | -6/Proximity Caves Golem | -6/Factory Golem | -6/Lower Caves Golem | -6/Lower Caves Golem | -6/Data Miner Golem | -5/Proximity Caves Golem | -5/Factory Golem | -5/Extension Commander-Golem | -5/Cetus Commander-Golem | -5/Archives Commander-Golem | -5/Hub_04(d) Scavenger-Golem | -4/Factory Golem | -4/Waste Golem | -4/Factory Golem | -4/Upper Caves Golem | -4/Upper Caves Commander-Mutant | -4/Warlord Mutant | -3/Proximity Caves Mutant | -3/Research Mutant | -3/Testing Skirmisher | -2/Research Mutant | -2/Quarantine Mutant | -2/Section 7 Generator-Mutant | -1/Access Generator-Mutant | -1/Command Resources | -11 -10 -10 -10 -9 -8 -7 -7 -7 -7 -7 -6 -6 -6 -6 -6 -5 -5 -5 -5 -5 -5 -4 -4 -4 -4 -4 -4 -3 -3 -3 -2 -2 -2 -1 -1 ----------- Run | Scr Mat Min Exi Min Mat Fac Low Low Zio Dee Pro Fac Low Low Dat Pro Fac Ext Cet Arc Hub Fac Was Fac Upp Upp War Pro Res Tes Res Qua Sec Acc Com Matter Collected 5879 | 276 247 177 . 128 1215 149 489 121 70 722 60 95 71 80 . 40 . 70 80 . 15 115 50 240 99 131 150 20 30 210 40 230 298 114 47 Remotely . | . . . . . . . . . . . . . . . . . . . . . . . . . . . . . . . . . . . . Salvage Created 16067 | 95 659 49 . 79 1613 261 286 238 . 2976 682 827 47 762 . 90 . 492 424 . 801 672 . 1320 462 917 689 591 115 134 . 531 146 42 67 Parts 653 | 6 58 2 . 10 81 20 8 7 . 52 36 35 1 39 . 5 . 20 19 . 25 35 . 64 23 35 15 27 4 9 . 5 8 3 1 Haulers Intercepted 11 | . 2 . . . 6 . . . . . . . . . . . . . . . 1 . . 1 . . . . 1 . . . . . . Recyclers Shooed 1 | . . . . . . . . . . . . 1 . . . . . . . . . . . . . . . . . . . . . . . Parts Field Recycled . | . . . . . . . . . . . . . . . . . . . . . . . . . . . . . . . . . . . . Retrieved Matter . | . . . . . . . . . . . . . . . . . . . . . . . . . . . . . . . . . . . . Parts Self-Destructed 229 | . . . . . . . 10 6 4 . 36 . 6 38 . 8 . . . . . . . . 23 33 . 65 . . . . . . . Prevented . | . . . . . . . . . . . . . . . . . . . . . . . . . . . . . . . . . . . . Kills | -11 -10 -10 -10 -9 -8 -7 -7 -7 -7 -7 -6 -6 -6 -6 -6 -5 -5 -5 -5 -5 -5 -4 -4 -4 -4 -4 -4 -3 -3 -3 -2 -2 -2 -1 -1 ------- Run | Scr Mat Min Exi Min Mat Fac Low Low Zio Dee Pro Fac Low Low Dat Pro Fac Ext Cet Arc Hub Fac Was Fac Upp Upp War Pro Res Tes Res Qua Sec Acc Com Combat Hostiles Destroyed 262 | . 16 . . 4 20 6 7 3 . 73 13 10 2 14 . 3 . 8 6 . 4 9 . 16 7 12 12 8 . . . 2 1 1 5 Guns 61 | . 15 . . 1 18 4 . . . 22 . . . . . . . . . . . . . . . . . . . . . . . . 1 Cannons 144 | . . . . . 2 2 3 3 . 9 12 10 2 14 . 3 . 7 6 . 3 9 . 16 7 12 10 8 . . . 1 1 1 3 AOE 42 | . 1 . . 3 . . 3 . . 35 . . . . . . . . . . . . . . . . . . . . . . . . . Classes Destroyed 30 | 2 7 . . . 4 . 1 1 . 4 1 1 . . . . . . . . . . . 1 1 . 4 1 . 1 . 1 . . . Worker 7 | . 1 . . . 1 . . . . . . . . . . . . . . . 3 . . . . . . . . 1 . 1 . . . Builder 10 | . 1 . . . 2 . . . . . . . . . . . . . . . 2 1 . 4 . . . . . . . . . . . Tunneler 4 | 1 . . . 1 . 1 . . . . . . . . . . . . . . . 1 . . . . . . . . . . . . . Hauler 11 | . 2 . . . 6 . . . . . . . . . . . . . . . 1 . . 1 . . . . 1 . . . . . . Recycler 7 | 1 . 1 . . 3 . . . . . . 1 . . . . . . . . . . . . . . . . . . . . 1 . . Minesweeper 4 | . . . . . . . . . . . . . . . . . . . . . . . . . 2 2 . . . . . . . . . Mechanic 1 | . . . . . . . . . . . . . . . . . . . . . . . . . . . . 1 . . . . . . . Operator 2 | . 1 . . . . . . . . . . . . . . . . . . . . . . . . . . . . 1 . . . . . Watcher 23 | . 3 . . . 4 1 . . . . . 3 . . . . . . 1 . 3 5 . 2 . . . . . 1 . . . . . Swarmer 49 | . 9 . . 3 1 4 . . . . 4 . 2 6 . 2 . 1 . . 1 5 . . 2 5 1 3 . . . . . . . Grunt 65 | . 7 . . 1 10 2 1 3 . . 6 3 . 5 . 1 . 3 2 . . 3 . 7 2 4 1 3 . . . . . . 1 Brawler 6 | . . . . . 1 . . . . . 1 . . . . . . . . . 1 . . . . . 2 1 . . . . . . . Duelist 1 | . . . . . 1 . . . . . . . . . . . . . . . . . . . . . . . . . . . . . . Protector 2 | . . . . . . . . . . . . . . . . . . . . . . . . . . . 2 . . . . . . . . Researcher 1 | . . . . . . . . . . . . . . . . . . . . . . . . . . . . . . 1 . . . . . Sentry 15 | . . . . . 6 . . . . . 1 1 . 1 . . . 3 . . . . . . 1 1 . 1 . . . . . . . Demolisher 2 | . . . . . . . . . . . . . . . . . . . . . . . . . . . 2 . . . . . . . . Specialist 2 | . . . . . . . . . . . . . . . . . . . . . . . . 1 . . 1 . . . . . . . . Hunter 12 | . . . . . 1 . . . . . . . . 2 . . . . . . 2 . . 3 2 2 . . . . . . . . . Programmer 15 | . . . . . . . . . . . . 5 . . . . . . . . . 1 . 5 . . 1 . . . . 1 1 1 . Behemoth 1 | . . . . . . . . . . . 1 . . . . . . . . . . . . . . . . . . . . . . . . Cetus Guard 4 | . . . . . . . . . . . . . . . . . . . 4 . . . . . . . . . . . . . . . . M Guard 1 | . . . . . . . . . . . . . . . . . . . . . . . . . . . . . . . . . . . 1 Enhanced Grunt 3 | . . . . . . . . . . . . . . . . . . . . . 3 . . . . . . . . . . . . . . Combat Programmer 2 | . . . . . . . . . . . . . . . . . . . . . . . . . . . . . . . . . . . 2 Striker 1 | . . . . . . . . . . . . . . . . . . . . . . . . . . . 1 . . . . . . . . Executioner 1 | . . . . . . . . . . . . . . . . . . . . . . . . . . . 1 . . . . . . . . Fortress 1 | . . . . . . . . . . . . . . . . . . . . . . . . . . . . . . . . 1 . . . Z-Technician 3 | . . . . . . . . . . 3 . . . . . . . . . . . . . . . . . . . . . . . . . Z-Light 8 | . . . . . . . . . . 8 . . . . . . . . . . . . . . . . . . . . . . . . . Decomposer 2 | . . . . . . . . . . . . . . 2 . . . . . . . . . . . . . . . . . . . . . Packrat 3 | . . . . . . . . . . . . . . 1 . . . . . . . . . . . 2 . . . . . . . . . Samaritan 1 | . . . . . . . . 1 . . . . . . . . . . . . . . . . . . . . . . . . . . . Assembler 2 | . . . . . . . . . . 2 . . . . . . . . . . . . . . . . . . . . . . . . . Assembled 43 | . . . . . . . . . . 43 . . . . . . . . . . . . . . . . . . . . . . . . . Golem 23 | . . . . . . . . . . 22 . 1 . . . . . . . . . . . . . . . . . . . . . . . Thug 1 | . . . . . . . 1 . . . . . . . . . . . . . . . . . . . . . . . . . . . . Butcher 4 | . . . . . . . 3 . . . . . . . . . . 1 . . . . . . . . . . . . . . . . . Mutant 2 | . . . . . . . 2 . . . . . . . . . . . . . . . . . . . . . . . . . . . . Best Kill Streak 42 | 1 4 1 . 4 7 4 5 3 . 42 7 4 1 5 . 3 . 2 2 . 7 8 . 7 3 4 6 5 1 1 . 1 1 1 3 Combat Bots Only 40 | . 3 . . 3 6 4 5 3 . 40 7 4 1 5 . 3 . 2 2 . 2 5 . 4 3 4 6 5 . . . 1 1 1 3 Max Kills in Single Turn 29 | 1 2 1 . 3 2 2 2 1 . 29 1 1 1 1 . 2 . 1 1 . 9 1 . 2 1 1 1 1 1 1 . 1 1 1 1 Gunslinging 1 | . . . . . . . . . . 1 . . . . . . . . . . . . . . . . . . . . . . . . . Exploded 29 | . 1 . . 2 . . 2 . . 29 . . . . . . . . . . . . . . . . . . . . . . . . . Melee . | . . . . . . . . . . . . . . . . . . . . . . . . . . . . . . . . . . . . Uniques/NPCs Destroyed 2 | . . . . . . . . . . . . . . . . . . . 1 . . . . . . . . . . . . . . . 1 Revision 17 (-5/Cetus) MAIN.C (-1/Command) Combat | -11 -10 -10 -10 -9 -8 -7 -7 -7 -7 -7 -6 -6 -6 -6 -6 -5 -5 -5 -5 -5 -5 -4 -4 -4 -4 -4 -4 -3 -3 -3 -2 -2 -2 -1 -1 -------- Run | Scr Mat Min Exi Min Mat Fac Low Low Zio Dee Pro Fac Low Low Dat Pro Fac Ext Cet Arc Hub Fac Was Fac Upp Upp War Pro Res Tes Res Qua Sec Acc Com Damage Taken 17062 | . 724 33 . 92 1785 325 804 267 . 4300 1625 434 56 496 . 11 . 186 209 67 846 943 . 749 491 296 285 641 . 190 . 195 8 84 920 Core 1195 | . 146 . . 18 144 14 77 . . 310 187 13 . 27 . 11 . 17 40 17 . 96 . 23 . 20 . 25 . . . 10 . . . Absorbed by Shields 674 | . . . . . . . . . . . . . . . . . . . 11 . . . . . . . . . . . . 80 8 . 575 Reduced by Siege Mode 147 | . . . . . . . . . . . . . . . . . . . . . . . . 17 21 16 12 22 . . . . . . 59 Redirected to Shielding 606 | . 33 . . 3 . . . . . 570 . . . . . . . . . . . . . . . . . . . . . . . . . Regen/Repaired (Parts) 568 | . . . . . 202 . . . . . . . . . . . . . . . . . . 366 . . . . . . . . . . . Core Remaining (%) 79 | 100 . . . 34 73 . . . . . 16 . . . . 94 . . . . 92 . . . . . . 85 . 100 . . 100 . 100 Volleys Fired 1062 | 2 67 2 . 10 128 21 36 15 1 241 22 44 5 27 . 6 14 26 27 . 17 37 . 47 22 36 44 47 1 21 2 14 36 5 39 Largest 2 | 2 2 2 . 2 2 2 2 2 1 2 2 2 2 2 . 2 2 2 2 . 2 2 . 2 2 2 2 2 2 2 2 2 2 2 2 Hottest 200 | 70 90 65 . 65 103 93 128 108 80 143 50 50 50 50 . 50 50 50 50 . 50 50 . 50 50 50 50 50 50 50 50 130 200 200 200 Shots Fired 1793 | 4 120 4 . 15 249 36 60 29 1 350 44 81 10 53 . 12 18 45 45 . 32 71 1 91 42 68 78 79 2 32 4 17 40 6 54 Gun 623 | 4 120 4 . 12 223 15 11 14 . 202 . . . . . . . . . . . . . . . . . . . . . . . . 18 Cannon 1155 | . . . . . 26 21 45 15 1 142 44 81 10 53 . 12 18 45 45 . 32 71 1 91 42 68 78 79 2 32 4 17 40 6 34 Launcher 13 | . . . . 3 . . 4 . . 6 . . . . . . . . . . . . . . . . . . . . . . . . . Special 2 | . . . . . . . . . . . . . . . . . . . . . . . . . . . . . . . . . . . 2 Kinetic 348 | 2 63 2 . 7 147 15 23 14 . 43 . . . . . . . . . . . . . . . . . . . . . . 4 1 27 Thermal 1162 | 2 5 . . . 94 21 33 14 1 101 44 81 10 53 . 12 18 45 45 . 32 71 1 91 42 68 78 79 2 32 4 17 36 5 25 Explosive 13 | . . . . 3 . . 4 . . 6 . . . . . . . . . . . . . . . . . . . . . . . . . Electromagnetic 117 | . 52 2 . 5 8 . . 1 . 49 . . . . . . . . . . . . . . . . . . . . . . . . . Phasic 151 | . . . . . . . . . . 151 . . . . . . . . . . . . . . . . . . . . . . . . . Robot Hit Streak 56 | 3 10 2 . 4 19 5 12 15 . 56 6 25 2 12 . 6 . 17 10 . 18 13 . 23 35 20 22 34 36 38 1 3 4 5 30 Robot Miss Streak 6 | . 4 2 . 3 6 2 1 2 . 6 2 2 5 3 . . . 2 4 . 1 2 1 2 2 1 2 3 . 2 1 1 2 . 1 Penetration Max 1 | . . . . . 1 . . 1 . 1 . . . . . . . . . . . . . . . . . . . . . . . . . Secondary Targets 5 | . . . . . 3 . . . . 2 . . . . . . . . . . . . . . . . . . . . . . . . . Max Gunslinging Chain 1 | . . . . . 1 . . . . 1 . . . . . . . . . . . . . . . . . . . . . . . . . Capacitor 22 | . . . . . . . . . . . . . . . . . . . . . . . . . . . . . . . . . . . 22 Shots Hit Robots 1104 | 3 79 2 . 8 164 17 38 15 . 260 31 43 4 32 . 5 . 20 29 . 22 44 . 58 30 50 35 41 2 9 1 6 6 1 49 Core Hits 658 | 3 38 2 . 9 85 9 17 7 . 229 15 20 2 16 . 3 . 11 13 . 21 22 1 32 12 22 14 16 1 4 . 2 2 . 30 Critical Kills 4 | . . . . . . 1 1 . . 1 . . . . . . . . . . . . . . . . . . . . . . . . 1 Critical Parts Destroyed . | . . . . . . . . . . . . . . . . . . . . . . . . . . . . . . . . . . . . Critical Strikes 17 | . . . . . 8 1 1 . . 6 . . . . . . . . . . . . . . . . . . . . . . . . 1 Burn 6 | . . . . . 6 . . . . . . . . . . . . . . . . . . . . . . . . . . . . . . Meltdown 3 | . . . . . . . 1 . . 1 . . . . . . . . . . . . . . . . . . . . . . . . 1 Destroy 1 | . . . . . . 1 . . . . . . . . . . . . . . . . . . . . . . . . . . . . . Corrupt 2 | . . . . . 2 . . . . . . . . . . . . . . . . . . . . . . . . . . . . . . Intensify 5 | . . . . . . . . . . 5 . . . . . . . . . . . . . . . . . . . . . . . . . Melee Attacks 12 | . . . . . . . . . . . 10 . . . . . . . . . . . . . . . . . . . . 2 . . . Kinetic 2 | . . . . . . . . . . . . . . . . . . . . . . . . . . . . . . . . 2 . . . Impact . | . . . . . . . . . . . . . . . . . . . . . . . . . . . . . . . . . . . . Slashing . | . . . . . . . . . . . . . . . . . . . . . . . . . . . . . . . . . . . . Piercing 10 | . . . . . . . . . . . 10 . . . . . . . . . . . . . . . . . . . . . . . . Sneak Attacks . | . . . . . . . . . . . . . . . . . . . . . . . . . . . . . . . . . . . . Combat Hostiles . | . . . . . . . . . . . . . . . . . . . . . . . . . . . . . . . . . . . . Follow-up Attacks . | . . . . . . . . . . . . . . . . . . . . . . . . . . . . . . . . . . . . Damage Inflicted 43117 | 40 1107 53 . 339 3098 417 1241 401 . 10228 1371 2132 163 1550 . 248 . 964 1394 . 2132 2024 47 3088 1310 2311 1602 1976 100 569 . 362 486 110 2254 Guns 9537 | 40 1002 29 . 90 2726 223 149 147 . 4567 . . . . . . . . . . . . . . . . . . . . . . . . 564 Cannons 28684 | . . . . . 372 194 670 254 . 2927 1206 2132 163 1550 . 248 . 964 1394 . 1010 2008 47 3088 1310 2311 1602 1976 100 569 . 303 486 110 1690 Explosions 4656 | . 105 24 . 249 . . 422 . . 2734 . . . . . . . . . . 1122 . . . . . . . . . . . . . . Melee 224 | . . . . . . . . . . . 165 . . . . . . . . . . . . . . . . . . . . 59 . . . Ramming 16 | . . . . . . . . . . . . . . . . . . . . . . 16 . . . . . . . . . . . . . Kinetic 4772 | 14 417 . . 38 1990 223 320 147 . 532 . . . . . . . . . . . . . . . . . . . . . 59 88 . 944 Thermal 28140 | 26 130 24 . . 985 194 499 228 . 2255 1206 2132 163 1550 . 248 . 964 1394 . 1010 2008 47 3088 1310 2311 1602 1976 100 569 . 303 398 110 1310 Explosive 3405 | . . . . 249 . . 422 . . 2734 . . . . . . . . . . . . . . . . . . . . . . . . . Electromagnetic 2791 | . 560 29 . 52 123 . . 26 . 879 . . . . . . . . . . 1122 . . . . . . . . . . . . . . Impact . | . . . . . . . . . . . . . . . . . . . . . . . . . . . . . . . . . . . . Slashing . | . . . . . . . . . . . . . . . . . . . . . . . . . . . . . . . . . . . . Piercing 165 | . . . . . . . . . . . 165 . . . . . . . . . . . . . . . . . . . . . . . . Phasic 3828 | . . . . . . . . . . 3828 . . . . . . . . . . . . . . . . . . . . . . . . . Highest Corruption 3 | . 2 2 2 2 3 . . . . . . 2 . . . . . . . . . 3 3 . . . . . . . . 1 2 . . Average Corruption 1 | . 2 2 2 2 2 . . . . . . 1 . . . . . . . . . 1 3 . . . . . . . . 1 1 . . Corruption Purged 5 | . . . . . . . . . . . . . . . . . . . . . . . . 2 1 . . . . . . . 2 . . Corruption Blocked 48 | . . . . . . . . . . . . . . . . . . . . . . . . . . . . . . . 6 42 . . . Effects 81 | . 2 6 1 7 43 . . . . . . 9 . . . . . . . . . 3 5 . . . . . . . . 1 4 . . Message Errors 16 | . . 1 1 . 10 . . . . . . 3 . . . . . . . . . 1 . . . . . . . . . . . . . Matter Fused 21 | . . 2 . 1 11 . . . . . . 3 . . . . . . . . . . 3 . . . . . . . . 1 . . . Heat Flow Errors 8 | . . . . 2 3 . . . . . . 1 . . . . . . . . . 1 . . . . . . . . . . 1 . . Energy Discharges 11 | . . 1 . 1 6 . . . . . . . . . . . . . . . . . 1 . . . . . . . . . 2 . . Parts Rejected 1 | . . . . . 1 . . . . . . . . . . . . . . . . . . . . . . . . . . . . . . Data Loss (minor) 11 | . . 1 . 2 5 . . . . . . 2 . . . . . . . . . . . . . . . . . . . . 1 . . Data Loss (major) 6 | . 1 1 . 1 3 . . . . . . . . . . . . . . . . . . . . . . . . . . . . . . Misfires 5 | . . . . . 3 . . . . . . . . . . . . . . . . 1 1 . . . . . . . . . . . . Alerts 1 | . 1 . . . . . . . . . . . . . . . . . . . . . . . . . . . . . . . . . . Weapon Failures 1 | . . . . . 1 . . . . . . . . . . . . . . . . . . . . . . . . . . . . . . Overload Shots . | . . . . . . . . . . . . . . . . . . . . . . . . . . . . . . . . . . . . Overflow Damage 2101 | . 28 3 . 10 29 3 49 . . 253 . 269 . 179 . 39 . . 85 . 153 175 . 95 129 143 74 28 . 117 . . 100 95 45 Projectiles 1814 | . . . . . 29 3 . . . 150 . 269 . 179 . 39 . . 85 . 59 175 . 95 129 143 74 28 . 117 . . 100 95 45 Explosions 287 | . 28 3 . 10 . . 49 . . 103 . . . . . . . . . . 94 . . . . . . . . . . . . . . Melee . | . . . . . . . . . . . . . . . . . . . . . . . . . . . . . . . . . . . . Knockbacks 6 | . . . . . . . 3 . . . . . . . . . . . . . . 1 . . . . . . . . . . 1 . 1 Impact 1 | . . . . . . . . . . . . . . . . . . . . . . 1 . . . . . . . . . . . . . Kinetic 4 | . . . . . . . 2 . . . . . . . . . . . . . . . . . . . . . . . . . 1 . 1 Secondary 1 | . . . . . . . 1 . . . . . . . . . . . . . . . . . . . . . . . . . . . . Self-Inflicted Damage 471 | . 190 33 . 25 . . 68 . . . . . . . . . . . . . 155 . . . . . . . . . . . . . . Shots 9 | . 3 1 . 1 . . 2 . . . . . . . . . . . . . 2 . . . . . . . . . . . . . . Rammed . | . . . . . . . . . . . . . . . . . . . . . . . . . . . . . . . . . . . . Targets Rammed 2 | . . . . . . . . . . . . . . . . . . . . . . 2 . . . . . . . . . . . . . Kicked 2 | . . . . . . . . . . . . . . . . . . . . . . 2 . . . . . . . . . . . . . Crushed . | . . . . . . . . . . . . . . . . . . . . . . . . . . . . . . . . . . . . Highest Temperature 320 | 9 112 40 . 231 270 159 21 118 . 320 24 176 . 16 . . . 5 . 1 . 172 . 5 . . . 6 . . . 222 228 28 216 Average Temperature 63 | 6 27 27 . 84 90 50 8 75 . 68 9 83 . 5 . . . 3 . 1 . 47 . 3 . . . 6 . . . 97 43 14 81 Received Heat Transfer 3996 | . 162 . . 36 855 81 162 153 . 1189 435 120 . 165 . . . 54 9 54 27 187 . 171 9 27 . 42 . . . 22 . . 36 Effects 4 | . . . . . 4 . . . . . . . . . . . . . . . . . . . . . . . . . . . . . . Energy Bleed 1 | . . . . . 1 . . . . . . . . . . . . . . . . . . . . . . . . . . . . . . Interference 3 | . . . . . 3 . . . . . . . . . . . . . . . . . . . . . . . . . . . . . . Siege Activations 37 | . . . . . . . . . . . . . . . . . . . . . . . . 7 4 6 6 4 . 3 . 3 2 . 2 Total Turns 1137 | . . . . . . . . . . . . . . . . . . . . . . . . 83 433 286 95 77 . 62 . 38 3 . 60 Longest Duration 346 | . . . . . . . . . . . . . . . . . . . . . . . . 24 346 111 45 37 . 55 . 25 2 . 34 Robots Corrupted 7 | . . . . . . . . . . 6 . . . . . . . . . . 1 . . . . . . . . . . . . . . Combat Hostiles 7 | . . . . . . . . . . 6 . . . . . . . . . . 1 . . . . . . . . . . . . . . Parts Fried 10 | . 1 . . . . . . . . . . . . . . . . . . . 9 . . . . . . . . . . . . . . Impact Corruptions . | . . . . . . . . . . . . . . . . . . . . . . . . . . . . . . . . . . . . Robots Melted 5 | . . . . . . . 1 . . 1 . . . . . . . 1 . . . . . . . . 1 . . . . . . . 1 Combat Hostiles 5 | . . . . . . . 1 . . 1 . . . . . . . 1 . . . . . . . . 1 . . . . . . . 1 Parts Melted 26 | . . . . . 1 1 2 . . 4 . 5 . 2 . . . 1 . . . 1 . 5 1 . 3 . . . . . . . . Heat Transferred 20422 | 74 174 50 . . 2553 259 807 450 . 3257 650 1125 100 850 . 150 . 525 812 . 550 1125 25 1575 700 1275 821 1050 50 300 . 112 200 50 753 Parts Sabotaged 1 | . . . . . . . . . . . . . . . . . . . . . . 1 . . . . . . . . . . . . . Parts Stolen . | . . . . . . . . . . . . . . . . . . . . . . . . . . . . . . . . . . . . Parts Stripped . | . . . . . . . . . . . . . . . . . . . . . . . . . . . . . . . . . . . . Power Chain Reactions 2 | . 1 1 . . . . . . . . . . . . . . . . . . . . . . . . . . . . . . . . . Missiles Intercepted 4 | . . . . . . . . . . . . . . . . . . . . . . . . . . . . . . . . . . . 4 Alert | -11 -10 -10 -10 -9 -8 -7 -7 -7 -7 -7 -6 -6 -6 -6 -6 -5 -5 -5 -5 -5 -5 -4 -4 -4 -4 -4 -4 -3 -3 -3 -2 -2 -2 -1 -1 ------- Run | Scr Mat Min Exi Min Mat Fac Low Low Zio Dee Pro Fac Low Low Dat Pro Fac Ext Cet Arc Hub Fac Was Fac Upp Upp War Pro Res Tes Res Qua Sec Acc Com Peak Influence 1431 | 10 324 126 . 194 419 293 . . . . . 220 . . . . 24 332 557 529 1111 605 200 419 . . . . 77 547 313 403 699 995 1431 Initial 636 | . 6 126 . . . 190 . . . . . . . . . . . 1 185 222 184 543 200 . . . . . 30 42 183 117 179 419 636 Average 266 | 5 139 70 . 56 164 160 . . . . . 67 . . . . 10 156 288 323 568 518 90 241 . . . . 69 335 222 289 499 644 1125 Maximum Alert Level 4 | . 1 . . . 2 1 . . . . . 1 . . . . . 1 2 2 4 2 1 2 . . . . . 2 1 2 2 3 4 Low Security (%) 44 | 100 67 100 . 100 53 61 . . . . . 98 . . . . 100 74 8 . 22 . 54 17 . . . . 100 16 31 20 1 . . Level 1 31 | . 32 . . . 43 38 . . . . . 1 . . . . . 25 81 68 8 20 45 76 . . . . . 49 68 65 12 . . Level 2 18 | . . . . . 2 . . . . . . . . . . . . . 10 31 34 79 . 6 . . . . . 34 . 14 86 70 7 Level 3 2 | . . . . . . . . . . . . . . . . . . . . . 32 . . . . . . . . . . . . 29 23 Level 4 2 | . . . . . . . . . . . . . . . . . . . . . 2 . . . . . . . . . . . . . 68 Level 5 . | . . . . . . . . . . . . . . . . . . . . . . . . . . . . . . . . . . . . High Security . | . . . . . . . . . . . . . . . . . . . . . . . . . . . . . . . . . . . . Max Security . | . . . . . . . . . . . . . . . . . . . . . . . . . . . . . . . . . . . . Squads Dispatched 66 | . 3 . . . 5 1 . . . . . 8 . . . . 2 2 . . 4 5 . 5 . . . 1 . 4 1 8 9 4 4 Investigation 12 | . 1 . . . 2 1 . . . . . . . . . . 1 2 . . 2 1 . 1 . . . . . . . . . . 1 Extermination 19 | . . . . . . . . . . . . 5 . . . . . . . . . 1 . 1 . . . . . 2 . 4 4 1 1 Reinforcement 27 | . 2 . . . 3 . . . . . . 3 . . . . 1 . . . 2 . . 3 . . . . . 2 1 3 5 1 1 Assault 8 | . . . . . . . . . . . . . . . . . . . . . . 3 . . . . . 1 . . . 1 . 2 1 Garrison . | . . . . . . . . . . . . . . . . . . . . . . . . . . . . . . . . . . . . Intercept . | . . . . . . . . . . . . . . . . . . . . . . . . . . . . . . . . . . . . Searches Triggered . | . . . . . . . . . . . . . . . . . . . . . . . . . . . . . . . . . . . . Data Miner Redirects 7 | . . . . . . . . . . . . . . . . . 1 . . . . 2 . . . . . . . . . 1 . 2 1 Construction Impeded 2 | . . . . . 1 . . . . . . . . . . . 1 . . . . . . . . . . . . . . . . . . Haulers Reinforced . | . . . . . . . . . . . . . . . . . . . . . . . . . . . . . . . . . . . . Active Scanning Responses . | . . . . . . . . . . . . . . . . . . . . . . . . . . . . . . . . . . . . Cargo Convoy Interrupts 1 | . . . . . . . . . . . . . . . . . . . . . . . . 1 . . . . . . . . . . . Stealth | -11 -10 -10 -10 -9 -8 -7 -7 -7 -7 -7 -6 -6 -6 -6 -6 -5 -5 -5 -5 -5 -5 -4 -4 -4 -4 -4 -4 -3 -3 -3 -2 -2 -2 -1 -1 --------- Run | Scr Mat Min Exi Min Mat Fac Low Low Zio Dee Pro Fac Low Low Dat Pro Fac Ext Cet Arc Hub Fac Was Fac Upp Upp War Pro Res Tes Res Qua Sec Acc Com Distress Signals 23 | . . . . . 1 . . . . . . . . . . 1 . 1 1 . . . . . . . 1 . . 2 7 . 1 1 7 Communications Jammed 3 | . . . . . . . . . . . . . . . . . . . . . . . . . . . . . . . . . 3 . . Distress Signals 3 | . . . . . . . . . . . . . . . . . . . . . . . . . . . . . . . . . 3 . . Times Spotted 511 | . 25 . . 6 45 10 11 3 . 69 13 13 2 13 . 4 . 16 13 10 18 25 . 29 6 7 33 26 . 20 6 14 29 14 31 Peak Tracking Total 37 | . 4 . . 3 6 4 5 3 . 37 6 4 1 5 . 5 . 6 5 10 5 8 . 7 3 3 18 10 . 4 7 4 5 4 6 Tactical Retreats 16 | . 1 . . . 2 2 1 . . 2 . . . . . . . . . . . 1 . . . . 1 . . 1 2 . 1 1 1 Traps | -11 -10 -10 -10 -9 -8 -7 -7 -7 -7 -7 -6 -6 -6 -6 -6 -5 -5 -5 -5 -5 -5 -4 -4 -4 -4 -4 -4 -3 -3 -3 -2 -2 -2 -1 -1 ------- Run | Scr Mat Min Exi Min Mat Fac Low Low Zio Dee Pro Fac Low Low Dat Pro Fac Ext Cet Arc Hub Fac Was Fac Upp Upp War Pro Res Tes Res Qua Sec Acc Com Traps Triggered 17 | . 3 . . . 5 1 . . . . . 2 . . . . . 3 . . . 1 . 1 . . . . . . . . 1 . . Indirectly . | . . . . . . . . . . . . . . . . . . . . . . . . . . . . . . . . . . . . Trap Hack Attempts . | . . . . . . . . . . . . . . . . . . . . . . . . . . . . . . . . . . . . Triggered . | . . . . . . . . . . . . . . . . . . . . . . . . . . . . . . . . . . . . Disarmed . | . . . . . . . . . . . . . . . . . . . . . . . . . . . . . . . . . . . . Reprogrammed . | . . . . . . . . . . . . . . . . . . . . . . . . . . . . . . . . . . . . Reused . | . . . . . . . . . . . . . . . . . . . . . . . . . . . . . . . . . . . . Traps Extracted . | . . . . . . . . . . . . . . . . . . . . . . . . . . . . . . . . . . . . Installed . | . . . . . . . . . . . . . . . . . . . . . . . . . . . . . . . . . . . . Triggered 6 | . . . . . . . . . . . . . . . . . . . . . . . . . . . 6 . . . . . . . . Machines | -11 -10 -10 -10 -9 -8 -7 -7 -7 -7 -7 -6 -6 -6 -6 -6 -5 -5 -5 -5 -5 -5 -4 -4 -4 -4 -4 -4 -3 -3 -3 -2 -2 -2 -1 -1 ---------- Run | Scr Mat Min Exi Min Mat Fac Low Low Zio Dee Pro Fac Low Low Dat Pro Fac Ext Cet Arc Hub Fac Was Fac Upp Upp War Pro Res Tes Res Qua Sec Acc Com Machines Disabled 46 | . 3 . . . 1 . 1 . . 2 . 2 . . . . . . 1 1 9 . . 2 1 . 1 . . 7 . 6 8 1 . Max in Single Turn 9 | . 3 . . . 1 . 1 . . 1 . 1 . . . . . . 1 . 9 . . 1 1 . 1 . . 1 . 1 1 1 . Garrison Access 6 | . . . . . 1 1 . . . . . . . . . . . . . . . . . . . . . . . 1 1 1 . 1 . Network Hub 2 | . . . . . . . . . . . . . . . . . . . . . 2 . . . . . . . . . . . . . . Machines Sabotaged . | . . . . . . . . . . . . . . . . . . . . . . . . . . . . . . . . . . . . Garrisons Compromised . | . . . . . . . . . . . . . . . . . . . . . . . . . . . . . . . . . . . . Overloaded Fab Kills . | . . . . . . . . . . . . . . . . . . . . . . . . . . . . . . . . . . . . Hacking | -11 -10 -10 -10 -9 -8 -7 -7 -7 -7 -7 -6 -6 -6 -6 -6 -5 -5 -5 -5 -5 -5 -4 -4 -4 -4 -4 -4 -3 -3 -3 -2 -2 -2 -1 -1 --------- Run | Scr Mat Min Exi Min Mat Fac Low Low Zio Dee Pro Fac Low Low Dat Pro Fac Ext Cet Arc Hub Fac Was Fac Upp Upp War Pro Res Tes Res Qua Sec Acc Com Machines Accessed 117 | . 6 . 1 1 12 10 1 1 . . . 4 1 3 4 . 1 7 1 . 7 2 . 4 2 . 5 . 3 11 2 8 10 5 5 Terminals 76 | . 5 . . . 9 3 . . . . . 2 . 1 . . . 7 1 . 7 1 . 2 1 . . . 2 8 1 6 10 5 5 Fabricators 6 | . . . . . . 2 . . . . . 1 . . . . 1 . . . . 1 . . . . . . . 1 . . . . . Repair Stations 2 | . . . . . 1 . . . . . . . . . . . . . . . . . . 1 . . . . . . . . . . . Recycling Units 2 | . 1 . . . . . . . . . . 1 . . . . . . . . . . . . . . . . . . . . . . . Scanalyzers 6 | . . . . . 1 2 . . . . . . . . . . . . . . . . . 1 . . . . . 1 . 1 . . . Garrison Access 8 | . . . . . 1 3 . . . . . . . . . . . . . . . . . . . . . . 1 1 1 1 . . . Total Hacks 439 | . 13 . 1 1 45 25 1 1 . . . 9 3 10 30 . 2 19 5 . 20 9 . 43 2 . 14 . 14 66 5 22 39 14 26 Successful 219 | . 6 . 1 1 29 17 1 1 . . . 6 3 10 30 . 2 11 . . 9 2 . 19 2 . 14 . 7 24 . 6 11 2 5 Failed 220 | . 7 . . . 16 8 . . . . . 3 . . . . . 8 5 . 11 7 . 24 . . . . 7 42 5 16 28 12 21 Catastrophic 47 | . 1 . . . 2 2 . . . . . . . . . . . 2 2 . 1 1 . 3 . . . . 3 9 1 1 8 3 8 Database Lockouts . | . . . . . . . . . . . . . . . . . . . . . . . . . . . . . . . . . . . . Manual 146 | . 9 . . . 11 4 . . 4 . . 3 . . . . . 5 1 . 12 3 . 20 . . 1 . 10 24 1 3 9 9 17 Terminals 299 | . 11 . . . 28 7 . . . . . 4 . 1 . . . 19 5 . 20 4 . 36 1 . . . 13 49 2 20 39 14 26 Fabricators 20 | . . . . . . 6 . . . . . 3 . . . . 2 . . . . 5 . . . . . . . 4 . . . . . Repair Stations 8 | . . . . . 5 . . . . . . . . . . . . . . . . . . 3 . . . . . . . . . . . Recycling Units 4 | . 2 . . . . . . . . . . 2 . . . . . . . . . . . . . . . . . . . . . . . Scanalyzers 36 | . . . . . 11 8 . . . . . . . . . . . . . . . . . 4 . . . . . 12 . 1 . . . Garrison Access 11 | . . . . . 1 4 . . . . . . . . . . . . . . . . . . . . . . 1 1 3 1 . . . Terminal Hacks 141 | . 3 . 1 1 11 3 1 1 . . . . 3 10 30 . . 9 . . 6 . . 12 2 . 14 . 4 13 . 5 9 1 2 Record 42 | . . . 1 . . . 1 . . . . . 3 9 11 . . . . . . . . 2 1 . 13 . . . . 1 . . . Part Schematic 12 | . . . . . 1 . . . . . . . . . 9 . . 1 . . . . . . . . . . . . . . 1 . . Robot Schematic 7 | . . . . . . . . . . . . . . . 7 . . . . . . . . . . . . . . . . . . . . Robot Analysis 11 | . 2 . . . 4 . . . . . . . . . . . . . . . . . . 4 . . . . . 1 . . . . . Prototype ID Bank 11 | . 1 . . . 1 1 . . . . . . . . 3 . . 2 . . . . . . . . . . 1 2 . . . . . Open Door 10 | . . . . 1 . . . 1 . . . . . 1 . . . . . . . . . . 1 . 1 . . 1 . 1 2 . 1 Level Access Points 2 | . . . . . 1 . . . . . . . . . . . . . . . 1 . . . . . . . . . . . . . . Branch Access Points 4 | . . . . . . 1 . . . . . . . . . . . . . . . . . 1 . . . . 1 . . . . 1 . Emergency Access Points 6 | . . . . . 1 . . . . . . . . . . . . . . . . . . 1 . . . . . 3 . . 1 . . Terminal Index 2 | . . . . . . . . . . . . . . . . . . . . . 1 . . . . . . . . 1 . . . . . Alert Level 5 | . . . . . . . . . . . . . . . . . . 1 . . . . . 1 . . . . . 2 . 1 . . . Unreport Threat 4 | . . . . . . . . . . . . . . . . . . . . . 1 . . . . . . . . 1 . . 2 . . Locate Traps 10 | . . . . . 2 . . . . . . . . . . . . 4 . . 1 . . . . . . . . 1 . 2 . . . Patrol Status 1 | . . . . . . . . . . . . . . . . . . . . . . . . . . . . . . . . . 1 . . Recall Investigation 2 | . . . . . . . . . . . . . . . . . . 1 . . . . . . . . . . . . . . 1 . . Recall Reinforcements 1 | . . . . . . . . . . . . . . . . . . . . . . . . . . . . . . . . . 1 . . Hauler Manifests 2 | . . . . . . . . . . . . . . . . . . . . . . . . 1 . . . . 1 . . . . . . Registered Prototypes 1 | . . . . . . . . . . . . . . . . . . . . . . . . 1 . . . . . . . . . . . Zone Layout 7 | . . . . . 1 1 . . . . . . . . . . . . . . 2 . . 1 . . . . 1 1 . . . . . Disengage Seal 1 | . . . . . . . . . . . . . . . . . . . . . . . . . . . . . . . . . . . 1 Fabricator Hacks 10 | . . . . . . 3 . . . . . 2 . . . . 2 . . . . 1 . . . . . . . 2 . . . . . Network Status 4 | . . . . . . 1 . . . . . 1 . . . . . . . . . 1 . . . . . . . 1 . . . . . Load Schematic 4 | . . . . . . 1 . . . . . 1 . . . . 1 . . . . . . . . . . . . 1 . . . . . Build 2 | . . . . . . 1 . . . . . . . . . . 1 . . . . . . . . . . . . . . . . . . Repair Station Hacks 6 | . . . . . 4 . . . . . . . . . . . . . . . . . . 2 . . . . . . . . . . . Scan Component 3 | . . . . . 2 . . . . . . . . . . . . . . . . . . 1 . . . . . . . . . . . Repair 3 | . . . . . 2 . . . . . . . . . . . . . . . . . . 1 . . . . . . . . . . . Recycling Unit Hacks 1 | . . . . . . . . . . . . 1 . . . . . . . . . . . . . . . . . . . . . . . Retrieve Components 1 | . . . . . . . . . . . . 1 . . . . . . . . . . . . . . . . . . . . . . . Scanalyzer 24 | . . . . . 11 8 . . . . . . . . . . . . . . . . . 2 . . . . . 3 . . . . . Insert Component 13 | . . . . . 5 4 . . . . . . . . . . . . . . . . . 1 . . . . . 3 . . . . . Analyze 11 | . . . . . 6 4 . . . . . . . . . . . . . . . . . 1 . . . . . . . . . . . Garrison Access Hacks 4 | . . . . . 1 1 . . . . . . . . . . . . . . . . . . . . . . . 1 . 1 . . . Seal Access 4 | . . . . . 1 1 . . . . . . . . . . . . . . . . . . . . . . . 1 . 1 . . . Unauthorized Hacks 33 | . 3 . . . 2 2 . . . . . 3 . . . . . 2 . . 3 1 . 3 . . . . 3 5 . . 2 1 3 Terminals 26 | . 2 . . . 2 2 . . . . . 2 . . . . . 2 . . 3 . . 2 . . . . 2 3 . . 2 1 3 Botnet 19 | . 2 . . . 2 1 . . . . . 1 . . . . . 2 . . 2 . . 1 . . . . 1 2 . . 2 1 2 Disrupt 1 | . . . . . . . . . . . . . . . . . . . . . . . . . . . . . . . . . . . 1 Operators 6 | . . . . . . 1 . . . . . 1 . . . . . . . . 1 . . 1 . . . . 1 1 . . . . . Fabricators 2 | . . . . . . . . . . . . . . . . . . . . . . 1 . . . . . . . 1 . . . . . Haulers 2 | . . . . . . . . . . . . . . . . . . . . . . 1 . . . . . . . 1 . . . . . Repair Stations 1 | . . . . . . . . . . . . . . . . . . . . . . . . 1 . . . . . . . . . . . Mechanics 1 | . . . . . . . . . . . . . . . . . . . . . . . . 1 . . . . . . . . . . . Recycling Units 2 | . 1 . . . . . . . . . . 1 . . . . . . . . . . . . . . . . . . . . . . . Mask 2 | . 1 . . . . . . . . . . 1 . . . . . . . . . . . . . . . . . . . . . . . Scanalyzers 1 | . . . . . . . . . . . . . . . . . . . . . . . . . . . . . . 1 . . . . . Researchers 1 | . . . . . . . . . . . . . . . . . . . . . . . . . . . . . . 1 . . . . . Garrison Access 1 | . . . . . . . . . . . . . . . . . . . . . . . . . . . . . 1 . . . . . . Watchers 1 | . . . . . . . . . . . . . . . . . . . . . . . . . . . . . 1 . . . . . . Data Cores Recovered 3 | . . . . . . . . . . . . . . . . . . 1 . . . . . . . . . . . 1 . . 1 . . Used 1 | . . . . . . . . . . . . . . . . . . . . . . . . . . . . . . . . . 1 . . Hacking Detections 89 | . 6 . . . 11 9 . . . . . 4 . 1 . . 1 7 2 . 7 2 . 3 . . . . 2 9 2 6 9 5 3 Full Trace Events 7 | . . . . . 1 1 . . . . . . . . . . 1 2 . . 1 1 . . . . . . . . . . . . . Feedback Events . | . . . . . . . . . . . . . . . . . . . . . . . . . . . . . . . . . . . . Feedback Blocked . | . . . . . . . . . . . . . . . . . . . . . . . . . . . . . . . . . . . . Robot Schematics Acquired 15 | . . . . . . . . . 4 . . . . . 7 . . . . . . . . . . . . . . 1 . . 3 . . Robots Built . | . . . . . . . . . . . . . . . . . . . . . . . . . . . . . . . . . . . . Authchips . | . . . . . . . . . . . . . . . . . . . . . . . . . . . . . . . . . . . . Time . | . . . . . . . . . . . . . . . . . . . . . . . . . . . . . . . . . . . . Total Robot Build Rating . | . . . . . . . . . . . . . . . . . . . . . . . . . . . . . . . . . . . . Part Schematics Acquired 51 | . . . . . 6 4 . . 14 . . . . . 9 . . 1 . . . . . . . . . . . 5 . . 12 . . Parts Built 2 | . . . . . . 1 . . . . . . . . . . 1 . . . . . . . . . . . . . . . . . . Authchips . | . . . . . . . . . . . . . . . . . . . . . . . . . . . . . . . . . . . . Time 87 | . . . . . . 36 . . . . . . . . . . 51 . . . . . . . . . . . . . . . . . . Total Part Build Rating 4 | . . . . . . 3 . . . . . . . . . . 1 . . . . . . . . . . . . . . . . . . Parts Repaired 3 | . . . . . 2 . . . . . . . . . . . . . . . . . . 1 . . . . . . . . . . . Time 207 | . . . . . 99 . . . . . . . . . . . . . . . . . . 108 . . . . . . . . . . . Parts Recycled . | . . . . . . . . . . . . . . . . . . . . . . . . . . . . . . . . . . . . Recycled Matter . | . . . . . . . . . . . . . . . . . . . . . . . . . . . . . . . . . . . . Retrieved Matter . | . . . . . . . . . . . . . . . . . . . . . . . . . . . . . . . . . . . . Retrieved Components . | . . . . . . . . . . . . . . . . . . . . . . . . . . . . . . . . . . . . Parts Scanalyzed 11 | . . . . . 5 4 . . . . . . . . . . . . . . . . . 1 . . . . . 1 . . . . . Part Schematics Acquired 9 | . . . . . 5 4 . . . . . . . . . . . . . . . . . . . . . . . . . . . . . Parts Damaged 2 | . . . . . 2 . . . . . . . . . . . . . . . . . . . . . . . . . . . . . . Bothacking | -11 -10 -10 -10 -9 -8 -7 -7 -7 -7 -7 -6 -6 -6 -6 -6 -5 -5 -5 -5 -5 -5 -4 -4 -4 -4 -4 -4 -3 -3 -3 -2 -2 -2 -1 -1 ------------ Run | Scr Mat Min Exi Min Mat Fac Low Low Zio Dee Pro Fac Low Low Dat Pro Fac Ext Cet Arc Hub Fac Was Fac Upp Upp War Pro Res Tes Res Qua Sec Acc Com Used RIF Installer . | . . . . . . . . . . . . . . . . . . . . . . . . . . . . . . . . . . . . Robots Hacked 1 | . . . . . . . . . . . . . . . . . . . . . . . . . . . . . . . . . . . 1 Non-combat . | . . . . . . . . . . . . . . . . . . . . . . . . . . . . . . . . . . . . Combat . | . . . . . . . . . . . . . . . . . . . . . . . . . . . . . . . . . . . . Robot Hacks Applied . | . . . . . . . . . . . . . . . . . . . . . . . . . . . . . . . . . . . . Manual 1 | . . . . . . . . . . . . . . . . . . . . . . . . . . . . . . . . . . . 1 Relay Couplers Released 4 | . . . . . . . . . . . . . . . . . . . . . . . . . . . . . . . 2 . . 2 . Machine Destruction 4 | . . . . . . . . . . . . . . . . . . . . . . . . . . . . . . . 2 . . 2 . Fabnet Peak Effective % . | . . . . . . . . . . . . . . . . . . . . . . . . . . . . . . . . . . . . Robots Rewired 21 | . . . . . . . 2 . . . . . . . . . . 13 . . . . . . . . 4 2 . . . . . . . Allies Hacked . | . . . . . . . . . . . . . . . . . . . . . . . . . . . . . . . . . . . . Hacks Repelled . | . . . . . . . . . . . . . . . . . . . . . . . . . . . . . . . . . . . . Allies | -11 -10 -10 -10 -9 -8 -7 -7 -7 -7 -7 -6 -6 -6 -6 -6 -5 -5 -5 -5 -5 -5 -4 -4 -4 -4 -4 -4 -3 -3 -3 -2 -2 -2 -1 -1 -------- Run | Scr Mat Min Exi Min Mat Fac Low Low Zio Dee Pro Fac Low Low Dat Pro Fac Ext Cet Arc Hub Fac Was Fac Upp Upp War Pro Res Tes Res Qua Sec Acc Com Total Allies 67 | . . 3 . 3 . . 2 . . . . . 2 . . 1 . 25 5 . . . 20 . . . 4 2 . . . . . . . Largest Group 20 | . . 3 3 4 3 . 2 2 . . . . 2 . . 1 1 12 12 6 4 . 20 20 . . 4 2 2 2 . . . . . Highest-Rated Group 680 | . . 40 40 89 58 . 56 56 . . . . 40 . . 96 96 455 591 547 384 . 680 680 . . 205 96 96 96 . . . . . Highest-Rated Ally 159 | . . 16 16 31 31 . 31 31 . . . . 20 . . 96 96 159 159 134 96 . 46 46 . . 56 48 48 48 . . . . . Total Orders 131 | . . . . 2 . . . 3 . . . . . . . . . . . . . . . . . . 4 6 2 21 4 37 26 11 15 STAY 11 | . . . . 1 . . . 2 . . . . . . . . . . . . . . . . . . 3 . . 3 . 2 . . . ROAM 2 | . . . . . . . . . . . . . . . . . . . . . . . . . . . . . 1 1 . . . . . FOLLOW 13 | . . . . 1 . . . 1 . . . . . . . . . . . . . . . . . . . . 1 4 . 3 1 1 1 EXPLORE 23 | . . . . . . . . . . . . . . . . . . . . . . . . . . . . . . 2 2 10 5 2 2 RETURN 82 | . . . . . . . . . . . . . . . . . . . . . . . . . . . 1 6 . 11 2 22 20 8 12 Ally Attacks 823 | . . . . 22 20 . . . . . . . 4 . . 3 7 98 85 23 31 . . 115 . . 27 35 . 49 17 52 126 44 65 Total Damage 56819 | . . . . 257 371 . . . . . . . 137 . . 287 190 2215 2530 987 1336 . . 2624 . . 1818 3907 . 4406 1963 6272 15278 5580 6661 Kills 226 | . . . . 2 6 . . . . . . . 1 . . 3 . 15 8 7 10 . . 9 . . 8 16 . 23 5 22 44 20 27 Allies Corrupted 4 | . . . . . . . . . . . . . . . . . . 2 . . . . . 1 . . . . . . . . . . 1 Allies Melted . | . . . . . . . . . . . . . . . . . . . . . . . . . . . . . . . . . . . . Intel | -11 -10 -10 -10 -9 -8 -7 -7 -7 -7 -7 -6 -6 -6 -6 -6 -5 -5 -5 -5 -5 -5 -4 -4 -4 -4 -4 -4 -3 -3 -3 -2 -2 -2 -1 -1 ------- Run | Scr Mat Min Exi Min Mat Fac Low Low Zio Dee Pro Fac Low Low Dat Pro Fac Ext Cet Arc Hub Fac Was Fac Upp Upp War Pro Res Tes Res Qua Sec Acc Com Robot Analysis Total 10 | . 2 . . . 3 . . . . . . . . . . . . . . . . . . 4 . . . . . 1 . . . . . Derelict Logs Recovered 20 | . . 1 . 1 . . 1 2 2 . 3 . 3 1 . 2 . . . . . . . . 2 2 . . . . . . . . . Drone Launches 92 | . . . . . . . . . . . . . . . . . . . . . . . . . . . 1 6 . 10 2 22 25 11 15 Drone Recoveries 90 | . . . . . . . . . . . . . . . . . . . . . . . . . . . 1 6 . 10 2 20 25 11 15 Exploration | -11 -10 -10 -10 -9 -8 -7 -7 -7 -7 -7 -6 -6 -6 -6 -6 -5 -5 -5 -5 -5 -5 -4 -4 -4 -4 -4 -4 -3 -3 -3 -2 -2 -2 -1 -1 ------------- Run | Scr Mat Min Exi Min Mat Fac Low Low Zio Dee Pro Fac Low Low Dat Pro Fac Ext Cet Arc Hub Fac Was Fac Upp Upp War Pro Res Tes Res Qua Sec Acc Com Turns Passed 55238 | 115 1556 789 242 784 3119 914 2280 3189 3733 4073 2504 1350 1826 2146 633 1470 486 1043 397 91 597 1028 877 1143 2673 2663 1563 5246 250 1334 523 1626 1789 584 602 Spaces Moved 22556 | 61 757 488 177 492 1359 547 1132 1053 1125 1499 1049 501 956 1030 79 793 154 376 143 44 250 385 189 339 955 845 583 1962 146 582 288 660 889 358 310 Core 20 | 14 . . . . 1 . . . . 5 . . . . . . . . . . . . . . . . . . . . . . . . . Treads 6784 | 47 757 59 . . 1 . 250 1053 1125 230 . . . . . . . . . . . . . 27 . . . 2 146 582 288 660 889 358 310 Legs 11001 | . . . . . . . . . . 397 1049 501 956 1030 79 793 154 376 143 44 250 385 189 312 955 845 583 1960 . . . . . . . Wheels 4751 | . . 429 177 492 1357 547 882 . . 867 . . . . . . . . . . . . . . . . . . . . . . . . . Hover . | . . . . . . . . . . . . . . . . . . . . . . . . . . . . . . . . . . . . Flight . | . . . . . . . . . . . . . . . . . . . . . . . . . . . . . . . . . . . . Fastest Speed 50 | 50 160 145 135 150 135 120 135 250 330 105 180 180 180 180 180 180 180 210 210 210 210 210 210 210 210 210 210 160 166 166 155 155 155 155 155 Average Speed 197 | 138 167 158 135 150 166 132 187 296 330 195 181 192 180 180 180 180 209 210 210 210 210 210 210 212 210 210 226 224 166 166 158 155 155 155 155 Slowest Speed 1200 | 160 240 240 150 150 950 135 330 330 330 1200 240 210 210 210 210 210 210 210 210 210 210 210 210 240 210 210 240 240 166 255 166 155 155 155 155 Overloaded Moves . | . . . . . . . . . . . . . . . . . . . . . . . . . . . . . . . . . . . . Propulsion Burnouts . | . . . . . . . . . . . . . . . . . . . . . . . . . . . . . . . . . . . . Robots Hopped . | . . . . . . . . . . . . . . . . . . . . . . . . . . . . . . . . . . . . Cave-ins Triggered . | . . . . . . . . . . . . . . . . . . . . . . . . . . . . . . . . . . . . Exploration Rate (%) 66 | 6 99 99 57 80 91 24 93 96 86 83 99 22 97 99 69 93 6 65 77 79 42 16 90 16 98 96 90 99 5 92 36 91 55 17 19 Regions Visited 35 Branch Regions 24 Pre-discovered Areas 8 | . . . 1 . . . . 1 1 . 2 . . 1 1 . . . . . . . . . 1 . . . . . . . . . . Known Exits Taken 26 | . . . . . 1 1 1 1 . 1 1 1 1 1 1 1 1 1 1 1 1 . . 1 1 1 . 1 1 1 1 1 1 1 . Unknown Exits Taken 7 | 1 1 1 1 1 . . . . 1 . . . . . . . . . . . . . . . . . 1 . . . . . . . . Scrap Searched 36 | . . 1 . 2 . . 2 4 3 . 3 . 4 3 . 4 . . . . . . . . 3 3 . 4 . . . . . . . Spaces Dug 497 | . . . . 19 7 4 2 1 . . . 20 . 3 . 6 18 16 . . 301 4 . 11 . 6 16 23 . 10 2 3 22 3 . Terrain Destroyed 756 | . 21 6 . 30 12 7 48 3 . 17 18 32 6 19 . 6 18 24 9 . 305 23 . 23 12 16 21 35 . 11 3 4 23 3 1 Melee . | . . . . . . . . . . . . . . . . . . . . . . . . . . . . . . . . . . . . Projectile 362 | . . . . . 12 7 7 3 . 17 18 32 6 19 . 6 18 24 9 . 9 23 . 23 12 16 21 35 . 11 3 4 23 3 1 AOE 394 | . 21 6 . 30 . . 41 . . . . . . . . . . . . . 296 . . . . . . . . . . . . . . Terrain Rammed . | . . . . . . . . . . . . . . . . . . . . . . . . . . . . . . . . . . . . Walls Destroyed . | . . . . . . . . . . . . . . . . . . . . . . . . . . . . . . . . . . . . Machines Disabled . | . . . . . . . . . . . . . . . . . . . . . . . . . . . . . . . . . . . . Actions | -11 -10 -10 -10 -9 -8 -7 -7 -7 -7 -7 -6 -6 -6 -6 -6 -5 -5 -5 -5 -5 -5 -4 -4 -4 -4 -4 -4 -3 -3 -3 -2 -2 -2 -1 -1 --------- Run | Scr Mat Min Exi Min Mat Fac Low Low Zio Dee Pro Fac Low Low Dat Pro Fac Ext Cet Arc Hub Fac Was Fac Upp Upp War Pro Res Tes Res Qua Sec Acc Com Total 31473 | 86 930 498 181 526 1967 699 1225 1097 1146 2289 1593 806 1046 1267 572 822 300 586 201 43 291 533 673 663 1583 1666 759 2718 152 922 351 1249 1257 378 398 Wait 6557 | 7 63 3 . 6 353 83 15 7 2 401 490 214 78 196 488 21 124 22 5 . 19 84 471 245 579 756 49 684 1 249 50 499 263 5 25 Move 22522 | 60 756 487 176 491 1358 546 1131 1052 1124 1498 1048 500 955 1029 78 792 153 375 142 43 249 385 188 338 954 844 582 1961 145 581 287 659 888 357 310 Hop . | . . . . . . . . . . . . . . . . . . . . . . . . . . . . . . . . . . . . Pick Up 288 | 10 22 3 . 8 34 12 5 7 5 49 3 22 2 3 . . 1 9 8 . 1 6 . 4 6 1 11 3 3 19 4 14 6 3 4 Fast Attach 113 | 3 1 . . . 18 2 2 3 3 12 1 3 . . . . . 1 3 . . . 4 2 1 4 7 1 . 6 1 13 22 . . Attach 78 | 4 3 1 2 . 9 4 3 . . 19 1 1 . . . . . . . . . 1 . . 1 . 3 3 1 1 2 11 4 2 2 Detach 33 | . . . 2 . 1 . . . . 1 5 4 . . . . 1 2 . . . . . . . . 3 2 . . 1 5 4 . 2 Swap 247 | . 7 1 . 4 29 19 11 4 4 25 4 8 3 8 1 3 4 6 1 . 3 10 . 21 8 11 2 . . 15 1 5 11 6 12 Drop 351 | . 11 1 1 7 37 12 2 9 7 43 9 10 3 4 5 . 3 7 15 . 2 8 10 6 12 14 22 4 1 30 3 26 23 . 4 Fire 1062 | 2 67 2 . 10 128 21 36 15 1 241 22 44 5 27 . 6 14 26 27 . 17 37 . 47 22 36 44 47 1 21 2 14 36 5 39 Melee 12 | . . . . . . . . . . . 10 . . . . . . . . . . . . . . . . . . . . 2 . . . Ram . | . . . . . . . . . . . . . . . . . . . . . . . . . . . . . . . . . . . . Kick 2 | . . . . . . . . . . . . . . . . . . . . . . 2 . . . . . . . . . . . . . Crush . | . . . . . . . . . . . . . . . . . . . . . . . . . . . . . . . . . . . . Escape Stasis 5 | . . . . . . . . . . . . . . . . . . 5 . . . . . . . . . . . . . . . . . Rewire 202 | . . . . . . . 20 . . . . . . . . . . 133 . . . . . . . . 36 13 . . . . . . . Trap . | . . . . . . . . . . . . . . . . . . . . . . . . . . . . . . . . . . . . Miscellaneous 1 | . . . . . . . . . . . . . . . . . . . . . . . . . . . . . . . . 1 . . . Route ------- -11/Scrapyard -10/Materials (discovered 5 exits: [*Mat x3] / [*Min x2]) -10/Mines (discovered 3 exits: [*Mat x2] / *Exi) -10/Exiles -9/Mines -8/Materials (discovered 3 exits: *Fac x3) -7/Factory (discovered 4 exits: *Fac / Sto / *Low x2) -7/Lower Caves -7/Lower Caves (discovered 2 exits: *Fac / *Zio) -7/Zion (discovered 2 exits: [*Dee] / *Pro) -7/Deep Caves -6/Proximity Caves -6/Factory -6/Lower Caves -6/Lower Caves (discovered 2 exits: *Fac / *Dat) -6/Data Miner -5/Proximity Caves -5/Factory (discovered 4 exits: Fac x2 / *Ext x2) -5/Extension (discovered 2 exits: *Fac / *Cet) -5/Cetus (discovered 2 exits: *Fac / *Arc) -5/Archives (discovered 2 exits: *Fac / *Hub) -5/Hub_04(d) (discovered 4 exits: *Fac x4) -4/Factory -4/Waste -4/Factory (discovered 4 exits: *Res / *Upp x2 / *Arm) -4/Upper Caves -4/Upper Caves (discovered 2 exits: *Res / *War) -4/Warlord -3/Proximity Caves -3/Research (discovered 5 exits: Res x3 / *Tes x2) -3/Testing -2/Research -2/Quarantine (discovered 2 exits: *Acc / *Sec) -2/Section 7 -1/Access -1/Command Free Derelict Territories History --------- Turn | Location | Event 54 | -11/Scrapyard | Discovered new exit (range 16) 116 | -11/Scrapyard | Entered Materials 264 | -10/Materials | Discovered new exit (range 11) 301 | -10/Materials | Build established: Mutant 416 | -10/Materials | Discovered new exit (range 15) 1122 | -10/Materials | Discovered new exit (range 15) 1148 | -10/Materials | Core integrity fell below 50% 1357 | -10/Materials | Discovered new exit (range 8) 1493 | -10/Materials | Discovered new exit (range 8) 1672 | -10/Materials | Entered Mines 1674 | -10/Mines | Met a Derelict bent on vengeance 1718 | -10/Mines | Assisted by bots powering up and referring to "LRC-V3" 1756 | -10/Mines | Deemed a non-threat by the Exiles lab entrance 1756 | -10/Mines | Discovered new exit (range 5) 1838 | -10/Mines | Learned Materials interactive machine intel 2106 | -10/Mines | Received a Rocket Launcher from a helpful Derelict 2113 | -10/Mines | Discovered new exit (range 6) 2197 | -10/Mines | Discovered new exit (range 11) 2461 | -10/Mines | Entered Exiles 2461 | -10/Exiles | Accompanied by 3 allies 2496 | -10/Exiles | Met 8R-AWN 2519 | -10/Exiles | Met EX-HEX 2573 | -10/Exiles | Met EX-DEC 2578 | -10/Exiles | Learned location of Zion (-7) 2685 | -10/Exiles | Discovered new exit (range 14) 2703 | -10/Exiles | Entered Mines 2703 | -9/Mines | Accompanied by 3 allies 2942 | -9/Mines | Learned 2 Materials zone layouts 2990 | -9/Mines | Received a Mining Laser from a helpful Derelict 3036 | -9/Mines | Met a Derelict who couldn't figure out how to use a Trap Extractor 3251 | -9/Mines | Discovered new exit (range 7) 3386 | -9/Mines | Assembled infested the area 3391 | -9/Mines | Assisted by a Guerilla fighting off Assembled 3487 | -9/Mines | Entered Materials 3487 | -8/Materials | Accompanied by 3 allies 3487 | -8/Materials | Evolved 4 slots: Utility x4 3488 | -8/Materials | Identified exit to Factory 3489 | -8/Materials | Loaded intel: 17 interactive machine locations 3492 | -8/Materials | Led the pair of lost Derelicts to an unsafe place 4708 | -8/Materials | Build established: Skirmisher 5135 | -8/Materials | Repaired Broken Hvy. Missile Launcher 5174 | -8/Materials | Repaired Hrd. Medium Armor Plating 6373 | -8/Materials | Build established: Mutant 6606 | -8/Materials | Entered Factory 6606 | -7/Factory | Evolved 2 slots: Power x1, Utility x1 6649 | -7/Factory | Identified exit to Storage 6649 | -7/Factory | Identified exit to Lower Caves 6705 | -7/Factory | Discovered new exit (range 13) 6729 | -7/Factory | Identified exit to Factory 7295 | -7/Factory | Fabricated EM Pulse Cannon? 7520 | -7/Factory | Entered Lower Caves 7911 | -7/Lower Caves | Build established: Skirmisher 7975 | -7/Lower Caves | Encountered a Warlord checkpoint 8075 | -7/Lower Caves | Learned Factory emergency access door positions 8343 | -7/Lower Caves | Discovered new exit (range 11) 8437 | -7/Lower Caves | Attacked by a delusional Derelict stockpiling parts 8511 | -7/Lower Caves | Identified exit to Lower Caves 8937 | -7/Lower Caves | Attacked by a faux Warlord 8969 | -7/Lower Caves | Lost 3 parts (1n2u) 9226 | -7/Lower Caves | Build established: Mutant 9800 | -7/Lower Caves | Entered another Lower Caves area 9800 | -7/Lower Caves | Accompanied by 2 allies 10161 | -7/Lower Caves | Discovered exit to Factory (range 10) 12176 | -7/Lower Caves | Encountered a Warlord checkpoint 12575 | -7/Lower Caves | Learned location of 1 exit from Factory 12610 | -7/Lower Caves | Discovered new exit (range 5) 12625 | -7/Lower Caves | Identified exit to Zion 12967 | -7/Lower Caves | Build established: Scavenger-Mutant 12989 | -7/Lower Caves | Entered Zion 13191 | -7/Zion | Discovered new exit (range 12) 13349 | -7/Zion | Identified exit to Proximity Caves 13711 | -7/Zion | Learned Factory terminal intel 13955 | -7/Zion | Acquired unknown access codes intercepted by a Zionite 14550 | -7/Zion | Learned location of Recycling (-7) 14699 | -7/Zion | Found CR-A16's Pointy Stick 15533 | -7/Zion | Received a hallucinogenic algorithm 16432 | -7/Zion | Build established: Mutant 16666 | -7/Zion | Opened final containment barrier to the Deep Caves 16715 | -7/Zion | Discovered new exit (range 3) 16715 | -7/Zion | Saw the warning signs outside the Deep Caves entrance 16722 | -7/Zion | Entered Deep Caves 17198 | -7/Deep Caves | Attacked by Z-Imprinter 17313 | -7/Deep Caves | Found Prototype Protection 17313 | -7/Deep Caves | Identified Zio. Weapon Casing 17395 | -7/Deep Caves | Found Zio. Weapon Casing 17573 | -7/Deep Caves | Z-Facility disabled 17652 | -7/Deep Caves | Lost 12 parts (3p2n6u1w) 17666 | -7/Deep Caves | Found Zio. Weapon Casing 17760 | -7/Deep Caves | Found Zio. Weapon Casing 17771 | -7/Deep Caves | Found Zio. Weapon Casing 17778 | -7/Deep Caves | Found Zio. Weapon Casing 18090 | -7/Deep Caves | Discovered new exit (range 7) 18393 | -7/Deep Caves | Spotted as-22163 18408 | -7/Deep Caves | Core integrity fell below 50% 18409 | -7/Deep Caves | Destroyed as-22163 18435 | -7/Deep Caves | Lost 3 parts (1n2u) 18804 | -7/Deep Caves | Found Zio. Weapon Casing 18827 | -7/Deep Caves | Found Zio. Weapon Casing 19128 | -7/Deep Caves | Spotted as-98747 19141 | -7/Deep Caves | Destroyed as-98747 19206 | -7/Deep Caves | Triggered Deep Caves wall 19206 | -7/Deep Caves | Spotted AS-70898 19214 | -7/Deep Caves | Destroyed AS-88420 19236 | -7/Deep Caves | Exposed GOLEM chamber 19248 | -7/Deep Caves | Destroyed AS-70898 19251 | -7/Deep Caves | Found Deploy-a-Sentry 19266 | -7/Deep Caves | Destroyed 40 combat bots 19335 | -7/Deep Caves | Found GOLEM Unit 19345 | -7/Deep Caves | Found GOLEM Unit 19465 | -7/Deep Caves | Found GOLEM Unit 19520 | -7/Deep Caves | Found GOLEM Unit 19825 | -7/Deep Caves | Build established: Golem 19908 | -7/Deep Caves | Found GOLEM Unit 19980 | -7/Deep Caves | Found GOLEM Unit 20124 | -7/Deep Caves | Found Surveybot 24 Chip 20127 | -7/Deep Caves | Found Surveybot 24 Scanner 20793 | -7/Deep Caves | Identified exit to Proximity Caves 20795 | -7/Deep Caves | Entered Proximity Caves 20926 | -6/Proximity Caves | Spotted B-75 Beast 21217 | -6/Proximity Caves | Revealed the true nature of CR-A16's Pointy Stick 21220 | -6/Proximity Caves | Destroyed B-75 Beast 21482 | -6/Proximity Caves | Core integrity fell below 20% 21512 | -6/Proximity Caves | Destroyed 7 combat bots 22804 | -6/Proximity Caves | Attracted the attention of an 0b10 checkpoint 22956 | -6/Proximity Caves | Discovered exit to Factory (range 15) 23299 | -6/Proximity Caves | Entered Factory 23299 | -6/Factory | Evolved 2 slots: Utility x2 23300 | -6/Factory | Identified exit to Lower Caves 23302 | -6/Factory | Loaded intel: 26 terminal locations 24649 | -6/Factory | Entered Lower Caves 25161 | -6/Lower Caves | Learned Research emergency access door positions 25161 | -6/Lower Caves | Learned Factory terminal intel 25163 | -6/Lower Caves | A Commander dispatched an escort 25555 | -6/Lower Caves | Learned 8 Factory zone layouts 25851 | -6/Lower Caves | Learned 4 Factory zone layouts 25878 | -6/Lower Caves | Learned Factory stockpile data 25966 | -6/Lower Caves | Discovered new exit (range 8) 25980 | -6/Lower Caves | Identified exit to Lower Caves 26475 | -6/Lower Caves | Entered another Lower Caves area 26475 | -6/Lower Caves | Accompanied by 1 ally 26476 | -6/Lower Caves | Commander's escort returned to base 26476 | -6/Lower Caves | Identified exit to Factory 26869 | -6/Lower Caves | Learned Research emergency access door positions 26869 | -6/Lower Caves | Learned location of Armory (-4) 26869 | -6/Lower Caves | Learned Extension emergency access door positions 26869 | -6/Lower Caves | Learned Extension stockpile data 26869 | -6/Lower Caves | Learned Armory stockpile data 26869 | -6/Lower Caves | Learned Extension terminal intel 26914 | -6/Lower Caves | Learned Factory trap positions 27170 | -6/Lower Caves | Attracted the attention of an 0b10 checkpoint 28209 | -6/Lower Caves | Discovered new exit (range 6) 28218 | -6/Lower Caves | Identified exit to Data Miner 28246 | -6/Lower Caves | Encountered a Warlord checkpoint 28621 | -6/Lower Caves | Entered Data Miner 28621 | -6/Data Miner | Discovered new exit (range 6) 28656 | -6/Data Miner | Met Data Miner 28690 | -6/Data Miner | Learned location of Section 7 (-2) 28690 | -6/Data Miner | Acquired the access code to Warlord's prototype stash 28722 | -6/Data Miner | Received God Mode back door access code from Data Miner 28760 | -6/Data Miner | Identified exit to Proximity Caves 29254 | -6/Data Miner | Entered Proximity Caves 29826 | -5/Proximity Caves | Escorted by Enhanced Grunt 30436 | -5/Proximity Caves | Learned 8 Factory zone layouts 30724 | -5/Proximity Caves | Entered Factory 30724 | -5/Factory | Accompanied by 1 ally 30724 | -5/Factory | Evolved 2 slots: Utility x2 30725 | -5/Factory | Identified exit to Factory 30725 | -5/Factory | Identified exit to Extension 30727 | -5/Factory | Loaded intel: 68 trap records 30729 | -5/Factory | Loaded intel: 27 terminal locations 30795 | -5/Factory | Incoming investigation squad redirected 30828 | -5/Factory | Fabricated Huge Storage Unit (x1) 31210 | -5/Factory | Entered Extension 31211 | -5/Extension | Loaded intel: 16 terminal locations 31304 | -5/Extension | Rescued a captive Derelict 31305 | -5/Extension | Rescued a captive Derelict 31622 | -5/Extension | Rescued a captive Derelict 31638 | -5/Extension | Rescued a captive Derelict 31677 | -5/Extension | Rescued a captive Derelict 31681 | -5/Extension | Rescued a captive Derelict 31742 | -5/Extension | Rescued A7 31868 | -5/Extension | Rescued a captive Derelict 31869 | -5/Extension | Rescued a captive Derelict 31963 | -5/Extension | Rescued a captive Derelict 31964 | -5/Extension | Rescued a captive Derelict 32153 | -5/Extension | Rescued a captive Derelict 32220 | -5/Extension | Discovered exit to Factory (range 10) 32223 | -5/Extension | Discovered new exit (range 6) 32251 | -5/Extension | Identified exit to Cetus 32253 | -5/Extension | Entered Cetus 32253 | -5/Cetus | Accompanied by 12 allies (A7) 32258 | -5/Cetus | Acquired a Cetus Manufacturing Module code from A7 32275 | -5/Cetus | Spotted Cetus Guard 32275 | -5/Cetus | Spotted Cetus Guard 32277 | -5/Cetus | Spotted Cetus Guard 32280 | -5/Cetus | Spotted Cetus Guard 32284 | -5/Cetus | Destroyed Cetus Guard 32285 | -5/Cetus | Allies destroyed Cetus Guard 32297 | -5/Cetus | Allies destroyed Cetus Guard 32306 | -5/Cetus | Destroyed Cetus Guard 32401 | -5/Cetus | Started Cetus Manufacturing Module 32417 | -5/Cetus | Escorted A7 to Cetus Mainframe 32426 | -5/Cetus | Manufactured an Enhanced Grunt 32427 | -5/Cetus | Discovered new exit (range 22) 32451 | -5/Cetus | Manufactured an Enhanced Grunt 32475 | -5/Cetus | Spotted Cetus Guard 32475 | -5/Cetus | Spotted Cetus Guard 32475 | -5/Cetus | Spotted Cetus Guard 32475 | -5/Cetus | Spotted Cetus Guard 32476 | -5/Cetus | Manufactured an Enhanced Grunt 32482 | -5/Cetus | Discovered exit to Factory (range 22) 32499 | -5/Cetus | Allies destroyed Cetus Guard 32500 | -5/Cetus | Allies destroyed Cetus Guard 32501 | -5/Cetus | Manufactured an Enhanced Grunt 32509 | -5/Cetus | Destroyed Cetus Guard 32515 | -5/Cetus | Destroyed Cetus Guard 32526 | -5/Cetus | Manufactured an Enhanced Grunt 32533 | -5/Cetus | Met Revision 17 32554 | -5/Cetus | Destroyed Revision 17 32647 | -5/Cetus | Identified exit to Archives 32650 | -5/Cetus | Entered Archives 32650 | -5/Archives | Accompanied by 6 allies (A7) 32655 | -5/Archives | Received a hacking code to weaken MAIN.C 32684 | -5/Archives | Met Zhirov 32690 | -5/Archives | Reinforcements dispatched to Archives 32702 | -5/Archives | Discovered exit to Factory (range 16) 32716 | -5/Archives | Discovered new exit (range 13) 32735 | -5/Archives | Reinforcements dispatched to Archives 32739 | -5/Archives | Identified exit to Hub_04(d) 32741 | -5/Archives | Entered Hub_04(d) 32741 | -5/Hub_04(d) | Accompanied by 4 allies 32857 | -5/Hub_04(d) | Build established: Commander-Golem 33259 | -5/Hub_04(d) | Network Hub disabled 33259 | -5/Hub_04(d) | Network Hub disabled 33338 | -5/Hub_04(d) | Entered Factory 33338 | -4/Factory | Evolved 2 slots: Propulsion x2 33634 | -4/Factory | Build established: Scavenger-Golem 34088 | -4/Factory | First assault squad dispatched 34112 | -4/Factory | Incoming assault squad redirected 34361 | -4/Factory | Incoming assault squad redirected 34366 | -4/Factory | Sucked down chute 34366 | -4/Factory | Entered Waste 34367 | -4/Waste | Joined by Warlord forces that had cleared the area 34398 | -4/Waste | Build established: Golem 34705 | -4/Waste | Discovered new exit (range 21) 34747 | -4/Waste | Identified exit to Factory 35243 | -4/Waste | Entered Factory 35243 | -4/Factory | Accompanied by 20 allies 35384 | -4/Factory | Identified exit to Upper Caves 35384 | -4/Factory | Identified exit to Armory 35549 | -4/Factory | Repaired Centrium Medium Armor Plating 35741 | -4/Factory | P-70 Sage assimilated allied BJ-TEU(m) 35838 | -4/Factory | Discovered new exit (range 7) 35874 | -4/Factory | Identified exit to Research 36375 | -4/Factory | Cargo convoy interrupted 36386 | -4/Factory | Entered Upper Caves 37017 | -4/Upper Caves | Attracted the attention of an 0b10 checkpoint 37640 | -4/Upper Caves | Spotted B-86 Titan 38153 | -4/Upper Caves | Found Alien Artifact 38186 | -4/Upper Caves | Discovered new exit (range 5) 38196 | -4/Upper Caves | Identified exit to Upper Caves 38812 | -4/Upper Caves | Learned 8 Research zone layouts 39059 | -4/Upper Caves | Entered another Upper Caves area 39060 | -4/Upper Caves | Identified exit to Warlord 39090 | -4/Upper Caves | Discovered exit to Research (range 13) 39551 | -4/Upper Caves | Encountered a Warlord checkpoint 39762 | -4/Upper Caves | Learned Research trap positions 40084 | -4/Upper Caves | Learned 12 Research zone layouts 40846 | -4/Upper Caves | Attracted the attention of an 0b10 checkpoint 41722 | -4/Upper Caves | Entered Warlord 42251 | -4/Warlord | Found Prototype Special Weapon 42252 | -4/Warlord | Identified RU-N14's Throwing Claymores v3 42256 | -4/Warlord | Found RU-N14's Throwing Claymores v3 42262 | -4/Warlord | Found RU-N14's Throwing Claymores v3 42265 | -4/Warlord | Found RU-N14's Throwing Claymores v3 42325 | -4/Warlord | Found Prototype Device 42325 | -4/Warlord | Identified Wardrone Bay 42600 | -4/Warlord | Met Warlord 42612 | -4/Warlord | Build established: Commander-Mutant 42625 | -4/Warlord | Warlord's base attacked by MAIN.C 42650 | -4/Warlord | Opened Warlord's prototype stash 42658 | -4/Warlord | Found Prototype Reactor 42658 | -4/Warlord | Identified Vortex Chain Reactor 42665 | -4/Warlord | Found Prototype Device 42665 | -4/Warlord | Identified Exp. Phase Shifter 42683 | -4/Warlord | Found Prototype Device 42683 | -4/Warlord | Identified Exp. Focal Shield 42688 | -4/Warlord | Found Prototype Processor 42694 | -4/Warlord | Found Prototype Hackware 42843 | -4/Warlord | Found Prototype Energy Gun 42847 | -4/Warlord | Found Prototype Energy Gun 42975 | -4/Warlord | Warlord forces counterattacked 42983 | -4/Warlord | Spotted Striker 43053 | -4/Warlord | Spotted Striker 43055 | -4/Warlord | Destroyed Striker 43063 | -4/Warlord | Spotted Executioner 43127 | -4/Warlord | Spotted Striker 43200 | -4/Warlord | Discovered new exit (range 14) 43225 | -4/Warlord | Spotted Executioner 43225 | -4/Warlord | Spotted Striker 43234 | -4/Warlord | Spotted Executioner 43241 | -4/Warlord | Allies destroyed Striker 43245 | -4/Warlord | Allies destroyed Executioner 43248 | -4/Warlord | Destroyed Executioner 43285 | -4/Warlord | Entered Proximity Caves 43312 | -3/Proximity Caves | Build established: Mutant 43831 | -3/Proximity Caves | Spotted B-86 Titan 43894 | -3/Proximity Caves | Allies destroyed B-86 Titan 44735 | -3/Proximity Caves | Attracted the attention of an 0b10 outpost 45500 | -3/Proximity Caves | Discovered exit to Research (range 6) 46124 | -3/Proximity Caves | Build established: Skirmisher 47435 | -3/Proximity Caves | Build established: Mutant 48531 | -3/Proximity Caves | Entered Research 48531 | -3/Research | Accompanied by 2 allies 48531 | -3/Research | Evolved 2 slots: Propulsion x2 48532 | -3/Research | Identified exit to Research 48533 | -3/Research | Loaded intel: 90 trap records 48569 | -3/Research | Identified exit to Testing 48781 | -3/Research | Entered Testing 48781 | -3/Testing | Accompanied by 2 allies 48811 | -3/Testing | Found Prototype Device 48896 | -3/Testing | Found Prototype Energy Cannon 48922 | -3/Testing | Identified Exp. Core Analyzer 48941 | -3/Testing | Identified Exp. Thermal Shield 49002 | -3/Testing | Identified Ghost Barrier 49023 | -3/Testing | Identified Vortex Rail (x2) 49131 | -3/Testing | Found Antimissile System 49162 | -3/Testing | Spotted Striker 49163 | -3/Testing | Spotted Striker 49209 | -3/Testing | Identified Null Cannon 49216 | -3/Testing | Found Prototype Energy Gun 49282 | -3/Testing | Identified Warp Gun 49343 | -3/Testing | Found Prototype Energy Cannon 49347 | -3/Testing | Found Prototype Energy Cannon 49380 | -3/Testing | Identified Potential Cannon 49500 | -3/Testing | Identified Imp. Potential Cannon 49633 | -3/Testing | Identified Dimensional Node Initializer 49722 | -3/Testing | Spotted PH-IARNX4DFHK 49736 | -3/Testing | Allies destroyed PH-IARNX4DFHK 49974 | -3/Testing | Discovered exit to Research (range 22) 50091 | -3/Testing | Found Prototype Protection 50095 | -3/Testing | Found Prototype Protection 50108 | -3/Testing | Identified Hvy. Regenerative Plating 50111 | -3/Testing | Identified SHELL Armor 50115 | -3/Testing | Entered Research 50115 | -2/Research | Warlord forces began assault on 0b10 50115 | -2/Research | Evolved 2 slots: Utility x2 50174 | -2/Research | Met up with Warlord 50225 | -2/Research | Research machine network offline 50268 | -2/Research | Found Prototype Launcher 50271 | -2/Research | Identified Tesla Bomb Launcher 50477 | -2/Research | Build established: Skirmisher 50616 | -2/Research | Borebot progress halted 50621 | -2/Research | Borebot progress halted 50628 | -2/Research | Discovered new exit (range 6) 50635 | -2/Research | Identified exit to Quarantine 50638 | -2/Research | Entered Quarantine 50654 | -2/Quarantine | Spotted Alpha 7 50673 | -2/Quarantine | Allies destroyed Alpha 7 50683 | -2/Quarantine | Found Prototype Processor 50683 | -2/Quarantine | Identified Exp. Target Analyzer 50875 | -2/Quarantine | Found Quantum Capacitor 51406 | -2/Quarantine | Found Alien Energy Cannon 51521 | -2/Quarantine | Found Alien Impact Weapon 51539 | -2/Quarantine | Cryocooling Duct disabled 51554 | -2/Quarantine | Ambient heat levels rising (+20) 51554 | -2/Quarantine | Non-combat units ordered to evacuate 51580 | -2/Quarantine | Found Alien Artifact 51582 | -2/Quarantine | Identified Subatomic Replicator 51582 | -2/Quarantine | Used Subatomic Replicator to replicate Wardrone Bay 51655 | -2/Quarantine | Found Alien Artifact 51663 | -2/Quarantine | Found Alien Artifact 51701 | -2/Quarantine | Build established: Mutant 51741 | -2/Quarantine | Discovered new exit (range 15) 51880 | -2/Quarantine | Identified Core Stripper 51885 | -2/Quarantine | Found Alien Artifact 51999 | -2/Quarantine | Spotted Fortress 52008 | -2/Quarantine | Destroyed Fortress 52060 | -2/Quarantine | Found Prototype Device 52060 | -2/Quarantine | Identified Exp. EM Disruption Field 52063 | -2/Quarantine | Found Prototype Device 52063 | -2/Quarantine | Identified Thermal Barrier 52138 | -2/Quarantine | First assault squad dispatched 52168 | -2/Quarantine | Incoming assault squad redirected 52180 | -2/Quarantine | Discovered new exit (range 7) 52186 | -2/Quarantine | Identified exit to Section 7 52264 | -2/Quarantine | Entered Section 7 52264 | -2/Section 7 | Accompanied by 2 allies 52355 | -2/Section 7 | Found Prototype Hackware 52661 | -2/Section 7 | Found Prototype Device 52661 | -2/Section 7 | Identified Femtoactuators 52703 | -2/Section 7 | Allies destroyed B-90 Cyclops 52766 | -2/Section 7 | Discovered new exit (range 12) 52788 | -2/Section 7 | Spotted S7 Guard 52792 | -2/Section 7 | Allies destroyed S7 Guard 52792 | -2/Section 7 | Initialized slip node 52811 | -2/Section 7 | Found Alien Artifact 52811 | -2/Section 7 | Identified Core Physics Calibrator 52854 | -2/Section 7 | Spotted S7 Guard 52856 | -2/Section 7 | Allies destroyed S7 Guard 52864 | -2/Section 7 | Found Alien Artifact 52864 | -2/Section 7 | Identified Core Regenerator 52864 | -2/Section 7 | Used Core Regenerator, restored core integrity (+10) 52894 | -2/Section 7 | Found Alien Artifact 52894 | -2/Section 7 | Identified Integrated Dissipator 52894 | -2/Section 7 | Installed Integrated Dissipator, increased core heat dissipation (+20) 53012 | -2/Section 7 | Spotted S7 Guard 53017 | -2/Section 7 | Allies destroyed S7 Guard 53026 | -2/Section 7 | Found Alien Artifact 53026 | -2/Section 7 | Identified Core Membrane 53026 | -2/Section 7 | Installed Core Membrane, gained immunity to corruption 53152 | -2/Section 7 | Found Alien Artifact 53152 | -2/Section 7 | Identified Integrated Mediator 53152 | -2/Section 7 | Installed Integrated Mediator, increased core attachment efficiency. 53353 | -2/Section 7 | Found Alien Artifact 53353 | -2/Section 7 | Identified Integrated Reactor 53353 | -2/Section 7 | Installed Integrated Reactor, increased core energy generation (+10) 53438 | -2/Section 7 | Allies destroyed Executioner 53440 | -2/Section 7 | Allies destroyed Executioner 53486 | -2/Section 7 | Spotted B-99 Colossus 53499 | -2/Section 7 | Allies destroyed B-99 Colossus 53547 | -2/Section 7 | Found Alien Artifact 53547 | -2/Section 7 | Identified Core Expander 53547 | -2/Section 7 | Installed Core Expander, added new Utility slot 53604 | -2/Section 7 | Found Alien Artifact 53604 | -2/Section 7 | Identified LRC Boosters 53604 | -2/Section 7 | Installed LRC Boosters, increased mass support (+10) 53607 | -2/Section 7 | Found Alien Artifact 53607 | -2/Section 7 | Identified LRC Insulator 53607 | -2/Section 7 | Installed LRC Insulator, gained EM resistance (25) 53916 | -2/Section 7 | Spotted Alpha 7 53921 | -2/Section 7 | Allies destroyed Alpha 7 53921 | -2/Section 7 | Spotted Alpha 7 53921 | -2/Section 7 | Allies destroyed Alpha 7 53936 | -2/Section 7 | Found Prototype Processor 53936 | -2/Section 7 | Identified Exp. Targeting Computer 53945 | -2/Section 7 | Found Antimissile System 53948 | -2/Section 7 | Found Prototype Ballistic Gun 53961 | -2/Section 7 | Identified Multirail 53966 | -2/Section 7 | Found Prototype Device 53966 | -2/Section 7 | Identified Exp. ECM Suite 54051 | -2/Section 7 | Identified exit to Access 54053 | -2/Section 7 | Entered Access 54053 | -1/Access | Accompanied by 2 allies 54053 | -1/Access | Evolved 2 slots: Power x1, Utility x1 54238 | -1/Access | Spotted B-99 Colossus 54264 | -1/Access | Allies destroyed B-99 Colossus 54268 | -1/Access | Found Multirail 54271 | -1/Access | Found Multirail 54353 | -1/Access | First assault squad dispatched 54379 | -1/Access | Incoming assault squad redirected 54430 | -1/Access | Build established: Generator-Mutant 54461 | -1/Access | Identified exit to Command 54566 | -1/Access | Incoming assault squad redirected 54637 | -1/Access | Entered Command 54637 | -1/Command | Accompanied by 2 allies 54714 | -1/Command | Identified Exp. System Shield 54775 | -1/Command | Disengaged cave seal 54775 | -1/Command | Derelicts emerged from the dark tunnel 54776 | -1/Command | Welcomed Warlord to Command 54895 | -1/Command | Derelicts emerged from the dark tunnel 54919 | -1/Command | P-80 Master assimilated allied TR-T0M(g) 54923 | -1/Command | First assault squad dispatched 55090 | -1/Command | Warlord commented on Warlord statues 55096 | -1/Command | Spotted M Guard 55096 | -1/Command | Spotted M Guard 55096 | -1/Command | Spotted Combat Programmer 55097 | -1/Command | Spotted Combat Programmer 55101 | -1/Command | Combat Programmer assimilated allied 76-BC8(h) 55105 | -1/Command | Destroyed Combat Programmer 55109 | -1/Command | Destroyed Combat Programmer 55118 | -1/Command | Destroyed M Guard 55127 | -1/Command | All MAIN.C guards destroyed 55149 | -1/Command | Found Prototype Device 55150 | -1/Command | Identified AEGIS Remote Shield 55153 | -1/Command | Found Prototype Launcher 55162 | -1/Command | Incoming investigation squad redirected 55194 | -1/Command | Met MAIN.C 55195 | -1/Command | Hacked MAIN.C using A7's code 55213 | -1/Command | 0b10 Conduit disabled 55215 | -1/Command | MAIN.C activated Command garrisons 55236 | -1/Command | Destroyed MAIN.C 55239 | *** | Establishing Free Derelict Territories! Last Messages --------------- 55227_ Slug penetrates MAIN.C. 55227_ MAIN.C reaction time slowed by virus. 55228_ Blast Slug penetrates MAIN.C. 55230_ Slug penetrates Reinforced Barrier. 55231_ Blast Slug penetrates MAIN.C. 55233_ Slug penetrates Reinforced Barrier. 55233_ Slug penetrates MAIN.C. 55234_ Blast Slug penetrates MAIN.C. 55234_ Penetrated by Blast Slug. 55234_ Blast Slug penetrates MAIN.C. 55235_ MAIN.C reaction time slowed by virus. 55236_ Slug penetrates Reinforced Barrier. 55236_ Slug penetrates MAIN.C. 55236_ MAIN.C: "I hope you know you're still going to DIE HERE WITH ME!" 55236_ MAIN.C destroyed. 55237_ Wardrone released from Wardrone Bay. ZY-L1N: Victory! Sure there's still lots to do, but without MAIN.C at the helm 0b10 doesn't stand a chance. We've got this... Map ----- +----------------------------------------------------+ | ?????????????????????????????????????????????????? | | ?????????????????????????????????????????????????? | | ?????????????????????????????????????????????????? | | ?????????????????????????????????????????????????? | | ?????????????????????????????????????????????????? | | ?????????????????????????????????????????????????? | | ?????????????????????????????????????????????????? | | ?????????????????????????????????????????????????? | | ?????????????????????????????????????????????????? | | ?????????????????????????????????????????????????? | | ?????????????????????????????????????????????????? | | ?????????????????????????????????????????????????? | | ?????????????????????????????????????????????????? | | ?????????????????????????????????????????????????? | | ?????????????????????????????????????????????????? | | ?????????????????????????????????????????????????? | | ?????????????????????????????????????????????????? | | ?????????????????????????????????????????????????? | | ?????????????????????????????????????????????????? | | ????????????#############????????????????????????? | | ????????????"""" #????????????????????????# | | ????????????"" #????????????????????????# | | ??????????? "" #######################??# | | ???????????""" / #??# | | ???????????""" / #??# | | ???????????"" NW@ #??# | | ???????????"" ################### #?## | | ???????????"" #?????????????????# ### | | ???????????"" #?????????????????# ## | | ?????????? ""#?????????????????# T# | | ????????? $ """""""#?????????????????#+++## | | ?????????? """""""""#?????????????????# | | ?????????? %%"""""""""""#?????????????????# | | ?????????? ????" " #?????????????????# | | ??????????????????????????????????????????# | | ??????????????????????????????????????????# | | ??????????????????????????????????????????# ### | | ??????????????????????????????????????????######?# | | ?????????????????????????????????????????????????# | | ?????????????????????????????????????????????????? | | ?????????????????????????????????????????????????? | | ?????????????????????????????????????????????????? | | ?????????????????????????????????????????????????? | | ?????????????????????????????????????????????????? | | ?????????????????????????????????????????????????? | | ?????????????????????????????????????????????????? | | ?????????????????????????????????????????????????? | | ?????????????????????????????????????????????????? | | ?????????????????????????????????????????????????? | | ?????????????????????????????????????????????????? | +----------------------------------------------------+ Best States ------------- Heat Dissipation 114 Coolant Potential 100 Energy Generation 89 Energy Capacity 1700 Matter Stores 300 Matter Capacity 300 Sight Range 22 Robot Scan Range 16 Terrain Scan Range 24 Terrain Scan Density 2010 Jamming Range 16 Additional Mass Support 20 EM Shielding 2 Corruption Containment 20 Armor Coverage 1850 Resistance: KI 20 Resistance: TH 15 Resistance: EX 15 Resistance: EM 40 Resistance: I 15 Resistance: S 15 Resistance: P 15 Core Shielding 20 Weapon Shielding 100 Point Defense Rating 240 Phase Shifting 8 Evasion (%) 50 Targeting Accuracy 8 Target Analysis 5 Core Analysis 8 Recoil Reduction 6 Offensive Hacking 12 Defensive Hacking 36 Item Schematics ----------------- Hvy. Missile Launcher | -8/Materials | Scanalyzed Arm. Wheel | -8/Materials | Scanalyzed Prc. Grenade Launcher | -8/Materials | Scanalyzed Hrd. Medium Armor Plating | -8/Materials | Scanalyzed EM Pulse Cannon | -8/Materials | Scanalyzed Huge Storage Unit | -8/Materials | Hacked Mni. Assault Cannon | -7/Factory | Scanalyzed System Restoration Module | -7/Factory | Scanalyzed Imp. Sensor Array | -7/Factory | Scanalyzed Imp. Signal Interpreter | -7/Factory | Scanalyzed Focal Shield | -7/Zion | Archive Med. Treads | -7/Zion | Archive Flak Gun | -7/Zion | Archive Imp. System Shield | -7/Zion | Archive Imp. Particle Charger | -7/Zion | Archive Mak. Shrapnel Gun | -7/Zion | Archive Hvy. Treads | -7/Zion | Archive Gravmag System | -7/Zion | Archive Adv. Heat Sink | -7/Zion | Archive Core Analyzer | -7/Zion | Archive Slug Cannon | -7/Zion | Archive Imp. Reaction Control System | -7/Zion | Archive Transmission Jammer | -7/Zion | Archive Imp. Dynamic Insulation System | -7/Zion | Archive Combat Drone Bay | -6/Data Miner | Free Lgt. Regenerative Plating | -6/Data Miner | Free Cld. Nuclear Pulse Thruster | -6/Data Miner | Free Prc. Matter Filter | -6/Data Miner | Free Imp. KE Penetrator | -6/Data Miner | Free Impulse Thruster | -6/Data Miner | Free Imp. Cloaking Device | -6/Data Miner | Free Hvy. Disruptor Cannon | -6/Data Miner | Free Quantum Capacitor | -6/Data Miner | Free Imp. Component Analysis Suite | -5/Extension | Hacked Adv. Dynamic Insulation System | -3/Testing | Archive Exp. Optical Array | -3/Testing | Archive Lgt. Antimatter Cannon | -3/Testing | Archive Hvy. Dispersion Rifle | -3/Testing | Archive Quantum Shading Machine | -3/Testing | Archive Lrn. Phase Cannon | -2/Section 7 | Archive Shock Maul | -2/Section 7 | Archive Com. Mass Driver | -2/Section 7 | Archive Hvy. Hardcell Cannon | -2/Section 7 | Archive Adv. Heavy Siege Treads | -2/Section 7 | Hacked Exp. Biometal Leg | -2/Section 7 | Archive Imp. Quantum Reactor | -2/Section 7 | Archive Exp. EM Disruption Field | -2/Section 7 | Archive Exp. Thermal Generator | -2/Section 7 | Archive Neutron Missile Launcher | -2/Section 7 | Archive Exp. Myomer Leg | -2/Section 7 | Archive Imp. Q-thruster | -2/Section 7 | Archive Robot Schematics ------------------ B-48 Gladiator | -7/Zion | Archive R-06 Scavenger | -7/Zion | Archive T-07 Excavator | -7/Zion | Archive Y-72 Warden | -7/Zion | Archive Y-64 Sentinel | -6/Data Miner | Free G-50 Soldier | -6/Data Miner | Free R-10 Processor | -6/Data Miner | Free L-41 Fighter | -6/Data Miner | Free B-60 Warrior | -6/Data Miner | Free G-67 Veteran | -6/Data Miner | Free A-27 Freighter | -6/Data Miner | Free B-74 Champion | -3/Testing | Archive C-55 Analyst | -2/Section 7 | Archive H-77 Assassin | -2/Section 7 | Archive D-83 Annihilator | -2/Section 7 | Archive Fabricated ------------ EM Pulse Cannon | x1 | -7/Factory Huge Storage Unit | x1 | -5/Factory Alien Tech Used ----------------- Subatomic Replicator Core Stripper Dimensional Node Initializer Core Physics Calibrator Core Regenerator Integrated Dissipator Core Membrane Integrated Mediator Integrated Reactor Core Expander LRC Boosters LRC Insulator Achievements -------------- Poison In The Code Challenges ------------ None Game ------ Seed ScanSwarmInverter Manual? 0 Play Time 10:18:13 Cumulative 257.6 hours Start 2022.07.30 @ 11:54:25 End 2022.08.06 @ 08:57:05 Sessions 75 Manual Loads 0 Difficulty Rogue Special Mode None Game No. 38 Rogue 31 Adventurer 1 Explorer 6 Win Type 7 Total 16 Types 5/1/6/0/0/1/1/1/1 Lore% 82 Gallery% 83 Achievement% 68 Wizard Run 0 Options --------- ASCII 0 Keyboard 0 Movement Mouse Keybinds 0 Fullscreen 1 Font 18/SmallcapsGlow Map View 76x50 Tactical HUD 1 Map Filters NONE Filters NONE Steam 1 RUN: 78a47340-c2a0-4ac4-b5d8-560f6ebee697